Workbook

Sheet т.1
I1: Таблица 1
A2: Количество населения и общедоступных библиотек Министерства культуры
A4: № | B4: ЦБС | C4: Население ( чел. в тыс.) | F4: Количество библиотек
C5: Всего | D5: гор. | E5: сельск. | F5: 2019 | H5: 2020
F6: всего | G6: из них в | H6: всего | I6: из них в
G7: с/мест. | I7: с/мест
A8: 1 | B8: Абыйская | C8: =D8+E8 -> 4 | D8: 2 | E8: 2 | F8: 7 | G8: 5 | H8: 7 | I8: 5
A9: 2 | B9: Аллаиховская | C9: 2.7 | D9: 2.1 | E9: 0.6 | F9: 6 | G9: 4 | H9: 6 | I9: 4
A10: 3 | B10: Амгинская | C10: 16.8 | E10: 16.8 | F10: 16 | G10: 16 | H10: 16 | I10: 16
A11: 4 | B11: Анабарская | C11: 3.7 | E11: 3.7 | F11: 3 | G11: 3 | H11: 3 | I11: 3
A12: 5 | B12: Булунская | C12: 8.5 | D12: 4.8 | E12: 3.7 | F12: 8 | G12: 6 | H12: 8 | I12: 6
A13: 6 | B13: Верхневилюйская | C13: 21 | E13: 21 | F13: 23 | G13: 23 | H13: 23 | I13: 23
A14: 7 | B14: Верхнеколымская | C14: 4 | D14: 2.7 | E14: 1.3 | F14: 7 | G14: 5 | H14: 7 | I14: 5
A15: 8 | B15: Верхоянская | C15: 11.1 | D15: 4.8 | E15: 6.3 | F15: 17 | G15: 13 | H15: 17 | I15: 13
A16: 9 | B16: Вилюйская | C16: 25 | D16: 14 | E16: 11 | F16: 24 | G16: 20 | H16: 24 | I16: 20
A17: 10 | B17: Горная | C17: 12.1 | E17: 12.1 | F17: 9 | G17: 9 | H17: 9 | I17: 9
A18: 11 | B18: Жиганская | C18: 4.1 | E18: 4.1 | F18: 5 | G18: 5 | H18: 5 | I18: 5
A19: 12 | B19: Кобяйская | C19: 12.1 | D19: 3.6 | E19: 8.5 | F19: 17 | G19: 15 | H19: 17 | I19: 15
A20: 13 | B20: Ленская | C20: 36.3 | D20: 31.6 | E20: 4.7 | F20: 21 | G20: 14 | H20: 21 | I20: 14
A21: 14 | B21: Момская | C21: 4 | E21: 4 | F21: 7 | G21: 7 | H21: 7 | I21: 7
A22: 15 | B22: Намская | C22: 24.9 | E22: 24.9 | F22: 20 | G22: 20 | H22: 20 | I22: 20
A23: 16 | B23: Нижнеколымская | C23: 4.3 | D23: 2.6 | E23: 1.7 | F23: 6 | G23: 3 | H23: 6 | I23: 3
A24: 17 | B24: Нюрбинская | C24: 23.6 | D24: 9.7 | E24: 13.9 | F24: 23 | G24: 20 | H24: 23 | I24: 20
A25: 18 | B25: Оймяконская | C25: 7.9 | D25: 5.1 | E25: 2.8 | F25: 9 | G25: 6 | H25: 9 | I25: 6
A26: 19 | B26: Олекминская | C26: 24.5 | D26: 9.2 | E26: 15.3 | F26: 27 | G26: 25 | H26: 27 | I26: 25
A27: 20 | B27: Оленекская | C27: 4.2 | E27: 4.2 | F27: 5 | G27: 5 | H27: 5 | I27: 5
A28: 21 | B28: Среднеколымская | C28: 7.3 | D28: 3.5 | E28: 3.8 | F28: 11 | G28: 9 | H28: 11 | I28: 9
A29: 22 | B29: Сунтарская* | C29: 23.4 | E29: 23.4 | F29: 19 | G29: 19 | H29: 21 | I29: 21
A30: 23 | B30: Таттинская | C30: 16.2 | E30: 16.2 | F30: 15 | G30: 15 | H30: 15 | I30: 15
A31: 24 | B31: Томпонская | C31: 12.5 | D31: 7.1 | E31: 5.4 | F31: 13 | G31: 10 | H31: 13 | I31: 10
A32: 25 | B32: Усть-Алданская | C32: 20.5 | E32: 20.5 | F32: 28 | G32: 28 | H32: 28 | I32: 28
A33: 26 | B33: Усть-Майская | C33: 7.5 | D33: 5.4 | E33: 2.1 | F33: 10 | G33: 5 | H33: 10 | I33: 5
A34: 27 | B34: Усть-Янская | C34: 7 | D34: 3.9 | E34: 3.1 | F34: 9 | G34: 5 | H34: 9 | I34: 5
A35: 28 | B35: Хангаласская* | C35: 32.8 | D35: 15.5 | E35: 17.3 | F35: 27 | G35: 22 | H35: 24 | I35: 21
A36: 29 | B36: Чурапчинская | C36: 21 | E36: 21 | F36: 19 | G36: 19 | H36: 19 | I36: 19
A37: 30 | B37: Мирнинская | C37: 72.2 | D37: 69.8 | E37: 2.4 | F37: 11 | G37: 3 | H37: 11 | I37: 3
A38: 31 | B38: Нерюнгринская | C38: 73.9 | D38: 72.8 | E38: 1.1 | F38: 8 | G38: 2 | H38: 8 | I38: 2
A39: 32 | B39: Эвено-Бытантайская | C39: 2.8 | E39: 2.8 | F39: 3 | G39: 3 | H39: 3 | I39: 3
A40: 33 | B40: Якутская | C40: 339.7 | D40: 323 | E40: 16.7 | F40: 18 | G40: 4 | H40: 18 | I40: 4
A41: 34 | B41: Алданская* | C41: 39.1 | D41: 35.1 | E41: 4 | F41: 7 | G41: 2 | H41: 9 | I41: 5
A42: 35 | B42: М.-Кангаласская* | C42: 30.9 | D42: 4.1 | E42: 26.8 | F42: 2 | G42: 2 | H42: 31 | I42: 30
A43: 36 | B43: ГБ ГП "г.Нерюнгри " | F43: 1 | H43: 1
A44: 37 | B44: Сунтарская ДЮПБ | F44: 1 | G44: 1
A45: 38 | B45: Бердигестях ДБ | F45: 1 | G45: 1 | H45: 1 | I45: 1
A46: 39 | B46: Б-ка ГО "п. Жатай" | C46: 10.3 | D46: 10.3 | F46: 1 | H46: 1
A47: 40 | B47: Алданский БИЦ* | H47: 2 | I47: 1
A48: 41 | B48: Томмотский БИЦ* | H48: 3 | I48: 1
B49: Итого по МБ | C49: 971.9 | D49: =SUM(D8:D48) -> 642.7 | E49: 329.2 | F49: 464 | G49: 374 | H49: 498 | I49: 407
B50: НБ РС(Я) | C50: 0 | F50: 1 | H50: 1
B51: ЦДЮ НБ РС(Я) | C51: 0 | F51: 1 | H51: 1
B52: РБС | C52: 0 | F52: 1 | H52: 1
B53: ВСЕГО | C53: =SUM(C49:C52) -> 971.9 | D53: 642.7 | E53: 329.2 | F53: 467 | G53: 374 | H53: 501 | I53: 407
B54: Б-ки КДУ | F54: 40 | G54: 35
B55: Итого по РС(Я) | F55: =SUM(F53:F54) -> 507 | G55: =SUM(G53:G54) -> 409 | H55: =SUM(H53:H54) -> 501 | I55: =SUM(I53:I54) -> 407
B56: * - библиотеки, где прошла реорганизация

Sheet т.2
G1: Таблица 2
A2: Количество пользователей и процент охвата населения
A3: библиотечным обслуживанием
A4: № | B4: ЦБС | C4: кол-во пользователей | F4: % охвата населения библ.обслуж.
C5: 2019 | D5: 2020 | E5: "+ -" | F5: 2019 | G5: 2020 | H5: "+ -"
A6: 1 | B6: Абыйская | C6: 3203 | D6: 1805 | E6: =D6-C6 -> -1398 | F6: 80 | G6: =D6*100/т.1!C8/1000 -> 45.125 | H6: =G6-F6 -> -34.875
A7: 2 | B7: Аллаиховская | C7: 1465 | D7: 755 | E7: =D7-C7 -> -710 | F7: 54.2 | G7: =D7*100/т.1!C9/1000 -> 27.96296296 | H7: =G7-F7 -> -26.23703704
A8: 3 | B8: Амгинская | C8: 12007 | D8: 7401 | E8: -4606 | F8: 71.9 | G8: =D8*100/т.1!C10/1000 -> 44.05357143 | H8: -27.84642857
A9: 4 | B9: Анабарская | C9: 1740 | D9: 1870 | E9: 130 | F9: 48.3 | G9: =D9*100/т.1!C11/1000 -> 50.54054054 | H9: 2.240540541
A10: 5 | B10: Булунская | C10: 6795 | D10: 5832 | E10: -963 | F10: 81.9 | G10: =D10*100/т.1!C12/1000 -> 68.61176471 | H10: -13.28823529
A11: 6 | B11: Верхневилюйская | C11: 13748 | D11: 8184 | E11: -5564 | F11: 65.5 | G11: =D11*100/т.1!C13/1000 -> 38.97142857 | H11: -26.52857143
A12: 7 | B12: Верхнеколымская | C12: 3985 | D12: 3552 | E12: -433 | F12: 99 | G12: =D12*100/т.1!C14/1000 -> 88.8 | H12: -10.2
A13: 8 | B13: Верхоянская | C13: 8411 | D13: 3703 | E13: =D13-C13 -> -4708 | F13: 75.7 | G13: =D13*100/т.1!C15/1000 -> 33.36036036 | H13: -42.33963964
A14: 9 | B14: Вилюйская | C14: 12964 | D14: 9657 | E14: -3307 | F14: 51.8 | G14: =D14*100/т.1!C16/1000 -> 38.628 | H14: -13.172
A15: 10 | B15: Горная | C15: 6337 | D15: 5733 | E15: -604 | F15: 66.5 | G15: 57.5 | H15: -9
A16: 11 | B16: Жиганская | C16: 3915 | D16: 3841 | E16: -74 | F16: 93.2 | G16: =D16*100/т.1!C18/1000 -> 93.68292683 | H16: 0.4829268293
A17: 12 | B17: Кобяйская | C17: 10546 | D17: 8498 | E17: -2048 | F17: 85.7 | G17: =D17*100/т.1!C19/1000 -> 70.23140496 | H17: -15.46859504
A18: 13 | B18: Ленская | C18: 17055 | D18: 9603 | E18: -7452 | F18: 46.7 | G18: =D18*100/т.1!C20/1000 -> 26.45454545 | H18: -20.24545455
A19: 14 | B19: Момская | C19: 3143 | D19: 2080 | E19: -1063 | F19: 78.5 | G19: =D19*100/т.1!C21/1000 -> 52 | H19: -26.5
A20: 15 | B20: Намская | C20: 15947 | D20: 6866 | E20: -9081 | F20: 64.5 | G20: =D20*100/т.1!C22/1000 -> 27.57429719 | H20: -36.92570281
A21: 16 | B21: Нижнеколымская | C21: 3842 | D21: 2370 | E21: -1472 | F21: 89.3 | G21: =D21*100/т.1!C23/1000 -> 55.11627907 | H21: -34.18372093
A22: 17 | B22: Нюрбинская | C22: 19488 | D22: 19248 | E22: -240 | F22: 82.2 | G22: =D22*100/т.1!C24/1000 -> 81.55932203 | H22: -0.6406779661
A23: 18 | B23: Оймяконская | C23: 6389 | D23: 2848 | E23: -3541 | F23: 77.9 | G23: =D23*100/т.1!C25/1000 -> 36.05063291 | H23: -41.84936709
A24: 19 | B24: Олекминская | C24: 15067 | D24: 8096 | E24: -6971 | F24: 61 | G24: =D24*100/т.1!C26/1000 -> 33.04489796 | H24: -27.95510204
A25: 20 | B25: Оленекская | C25: 3193 | D25: 3155 | E25: -38 | F25: 76 | G25: =D25*100/т.1!C27/1000 -> 75.11904762 | H25: -0.880952381
A26: 21 | B26: Среднеколымская | C26: 5416 | D26: 4194 | E26: -1222 | F26: 73.2 | G26: =D26*100/т.1!C28/1000 -> 57.45205479 | H26: -15.74794521
A27: 22 | B27: Сунтарская* | C27: 12516 | D27: 14622 | E27: 2106 | F27: 66.8 | G27: =D27*100/т.1!C29/1000 -> 62.48717949 | H27: -4.312820513
A28: 23 | B28: Таттинская | C28: 10105 | D28: 9404 | E28: -701 | F28: 62.4 | G28: =D28*100/т.1!C30/1000 -> 58.04938272 | H28: -4.350617284
A29: 24 | B29: Томпонская | C29: 7376 | D29: 6266 | E29: -1110 | F29: 59 | G29: =D29*100/т.1!C31/1000 -> 50.128 | H29: -8.872
A30: 25 | B30: Усть-Алданская | C30: 20002 | D30: 19659 | E30: -343 | F30: 97 | G30: =D30*100/т.1!C32/1000 -> 95.89756098 | H30: -1.102439024
A31: 26 | B31: Усть-Майская | C31: 5382 | D31: 4975 | E31: -407 | F31: 72.7 | G31: =D31*100/т.1!C33/1000 -> 66.33333333 | H31: -6.366666667
A32: 27 | B32: Усть-Янская | C32: 4106 | D32: 4056 | E32: -50 | F32: 58.6 | G32: =D32*100/т.1!C34/1000 -> 57.94285714 | H32: -0.6571428571
A33: 28 | B33: Хангаласская* | C33: 28597 | D33: 22365 | E33: -6232 | F33: 87.2 | G33: =D33*100/т.1!C35/1000 -> 68.18597561 | H33: -19.01402439
A34: 29 | B34: Чурапчинская | C34: 15770 | D34: 9554 | E34: -6216 | F34: 75 | G34: =D34*100/т.1!C36/1000 -> 45.4952381 | H34: -29.5047619
A35: 30 | B35: Мирнинская | C35: 23850 | D35: 14307 | E35: -9543 | F35: 32.9 | G35: =D35*100/т.1!C37/1000 -> 19.81578947 | H35: -13.08421053
A36: 31 | B36: Нерюнгринская | C36: 13208 | D36: 13145 | E36: -63 | F36: 30.6 | G36: 30.4 | H36: -0.2
A37: 32 | B37: Эвено-Бытантай | C37: 1452 | D37: 970 | E37: =D37-C37 -> -482 | F37: 51.8 | G37: =D37*100/т.1!C39/1000 -> 34.64285714 | H37: =G37-F37 -> -17.15714286
A38: 33 | B38: Якутская | C38: 69665 | D38: 34180 | E38: -35485 | F38: 20.7 | G38: =D38*100/т.1!C40/1000 -> 10.06181925 | H38: -10.63818075
A39: 34 | B39: Алданская* | C39: 15093 | D39: 8634 | E39: =D39-C39 -> -6459 | F39: 39.3 | G39: 39.6 | H39: =G39-F39 -> 0.3
A40: 35 | B40: М.-Кангаласская* | C40: 6129 | D40: 14898 | E40: 8769 | F40: 19.8 | G40: =D40*100/т.1!C42/1000 -> 48.21359223 | H40: =G40-F40 -> 28.41359223
A41: 36 | B41: ГБ ГП "г.Нерюнгри" | C41: 9278 | D41: 6802 | E41: -2476
A42: 37 | B42: Сунтарская ДЮПБ | C42: 3115 | E42: -3115
A43: 38 | B43: Бердигестях ДБ | C43: 1643 | D43: 1225 | E43: -418
A44: 39 | B44: Б-ка ГО "п. Жатай" | C44: 2735 | D44: 1573 | E44: -1162 | F44: 27 | G44: =D44*100/т.1!C46/1000 -> 15.27184466 | H44: -11.72815534
A45: 40 | B45: Алданский БИЦ* | D45: 3105 | E45: 3105
A46: 41 | B46: Томмотский БИЦ* | D46: 3758 | E46: 3758
B47: Итого по МБ | C47: =SUM(C6:C46) -> 424678 | D47: =SUM(D6:D46) -> 312789 | E47: =SUM(E6:E46) -> -111889 | F47: 43.9 | G47: =D47*100/т.1!C49/1000 -> 32.18324931 | H47: =G47-F47 -> -11.71675069
B48: НБ РС(Я) | C48: 35698 | D48: 29402 | E48: =D48-C48 -> -6296
B49: ЦДЧ НБ РС(Я) | C49: 11707 | D49: 5415 | E49: =D49-C49 -> -6292
B50: РБС | C50: 2002 | D50: 2256 | E50: =D50-C50 -> 254
B51: ВСЕГО | C51: =SUM(C47:C50) -> 474085 | D51: =SUM(D47:D50) -> 349862 | E51: =SUM(E47:E50) -> -124223 | F51: 49 | G51: =D51*100/т.1!C53/1000 -> 35.99773639 | H51: =G51-F51 -> -13.00226361
B52: Б-ки КДУ | C52: 19071 | E52: =D52-C52 -> -19071
B53: Итого по РС(Я) | C53: =SUM(C51:C52) -> 493156 | D53: =SUM(D51:D52) -> 349862 | E53: =SUM(E51:E52) -> -143294 | F53: 51 | G53: 36 | H53: =G53-F53 -> -15

Sheet 2.1
I1: Таблица 2.1
A2: Количество пользователей
A4: № | B4: ЦБС | C4: всего | D4: из них пользователей, обслуженных в стенах библиотеки | G4: из них во внестац | H4: из них удал. польз | I4: Читаемость
D5: всего | E5: до 14 лет | F5: от 15-30
A6: 1 | B6: Абыйская | C6: 1805 | D6: 1219 | E6: 223 | F6: 98 | G6: 586 | I6: 17.5
A7: 2 | B7: Аллаиховская | C7: 755 | D7: 648 | E7: 279 | F7: 90 | G7: 107 | I7: 21.1
A8: 3 | B8: Амгинская | C8: 7401 | D8: 5837 | E8: 1855 | F8: 1449 | G8: 1564 | H8: 365 | I8: 16.6
A9: 4 | B9: Анабарская | C9: 1870 | D9: 1469 | E9: 382 | F9: 274 | G9: 401 | I9: 11.6
A10: 5 | B10: Булунская | C10: 5832 | D10: 4919 | E10: 1153 | F10: 764 | G10: 913 | I10: 19.4
A11: 6 | B11: Верхневилюйская | C11: 8184 | D11: 6826 | E11: 2235 | F11: 1584 | G11: 1358 | H11: 50 | I11: 18.3
A12: 7 | B12: Верхнеколымская | C12: 3552 | D12: 3003 | E12: 959 | F12: 395 | G12: 549 | H12: 52 | I12: 23.5
A13: 8 | B13: Верхоянская | C13: 3703 | D13: 3190 | E13: 957 | F13: 663 | G13: 513 | I13: 17
A14: 9 | B14: Вилюйская | C14: 9657 | D14: 8628 | E14: 2638 | F14: 1935 | G14: 1029 | H14: 699 | I14: 19.8
A15: 10 | B15: Горная | C15: 5733 | D15: 4558 | E15: 1020 | F15: 1319 | G15: 1175 | H15: 505 | I15: 27
A16: 11 | B16: Жиганская | C16: 3841 | D16: 2973 | E16: 686 | F16: 517 | G16: 868 | I16: 17.2
A17: 12 | B17: Кобяйская | C17: 8498 | D17: 6517 | E17: 1943 | F17: 1942 | G17: 1981 | H17: 306 | I17: 21.2
A18: 13 | B18: Ленская | C18: 9603 | D18: 7497 | E18: 3519 | F18: 1160 | G18: 2106 | H18: 102 | I18: 19.8
A19: 14 | B19: Момская | C19: 2080 | D19: 1930 | E19: 630 | F19: 447 | G19: 150 | I19: 15.6
A20: 15 | B20: Намская | C20: 6866 | D20: 5833 | E20: 2143 | F20: 1261 | G20: 1033 | H20: 107 | I20: 14.1
A21: 16 | B21: Нижнеколымская | C21: 2370 | D21: 2370 | E21: 915 | F21: 633 | I21: 13.7
A22: 17 | B22: Нюрбинская | C22: 19248 | D22: 11163 | E22: 4124 | F22: 2495 | G22: 8085 | I22: 9.2
A23: 18 | B23: Оймяконская | C23: 2848 | D23: 2350 | E23: 728 | F23: 772 | G23: 498 | I23: 19.2
A24: 19 | B24: Олекминская | C24: 8096 | D24: 7224 | E24: 2408 | F24: 1675 | G24: 872 | I24: 17
A25: 20 | B25: Оленекская | C25: 3155 | D25: 1111 | E25: 387 | F25: 369 | G25: 2044 | H25: 65 | I25: 10.3
A26: 21 | B26: Среднеколымская | C26: 4194 | D26: 3708 | E26: 825 | F26: 678 | G26: 486 | I26: 8.4
A27: 22 | B27: Сунтарская* | C27: 14622 | D27: 12432 | E27: 4042 | F27: 3179 | G27: 2190 | H27: 28 | I27: 13.2
A28: 23 | B28: Таттинская | C28: 9404 | D28: 5451 | E28: 2084 | F28: 919 | G28: 3953 | H28: 332 | I28: 20.6
A29: 24 | B29: Томпонская | C29: 6266 | D29: 5084 | E29: 2017 | F29: 1125 | G29: 1182 | H29: 423 | I29: 18.8
A30: 25 | B30: Усть-Алданская | C30: 19659 | D30: 10087 | E30: 3240 | F30: 2422 | G30: 9572 | I30: 15.7
A31: 26 | B31: Усть-Майская | C31: 4975 | D31: 3943 | E31: 1499 | F31: 879 | G31: 1032 | I31: 27.8
A32: 27 | B32: Усть-Янская | C32: 4056 | D32: 2869 | E32: 955 | F32: 999 | G32: 1187 | I32: 18.5
A33: 28 | B33: Хангаласская* | C33: 22365 | D33: 7303 | E33: 2270 | F33: 1247 | G33: 15062 | H33: 13172 | I33: 8.7
A34: 29 | B34: Чурапчинская | C34: 9554 | D34: 8702 | E34: 2770 | F34: 1716 | G34: 852 | H34: 247 | I34: 18.3
A35: 30 | B35: Мирнинская | C35: 14307 | D35: 13680 | E35: 5164 | F35: 2458 | G35: 627 | H35: 101 | I35: 19.3
A36: 31 | B36: Нерюнгринская | C36: 13145 | D36: 10908 | E36: 3102 | F36: 1894 | G36: 2237 | I36: 21.2
A37: 32 | B37: Эвено-Бытантайская | C37: 970 | D37: 348 | E37: 217 | F37: 40 | G37: 622 | I37: 14
A38: 33 | B38: Якутская | C38: 34180 | D38: 32031 | E38: 12666 | F38: 7653 | G38: 2149 | H38: 350 | I38: 16.4
A39: 34 | B39: Алданская* | C39: 8634 | D39: 8028 | E39: 1350 | F39: 1580 | G39: 606 | H39: 154 | I39: 17.2
A40: 35 | B40: М.-Кангаласская* | C40: 14898 | D40: 11801 | E40: 4784 | F40: 2113 | G40: 3097 | H40: 392 | I40: 13.8
A41: 36 | B41: ГБ ГП "г.Нерюнгри " | C41: 6802 | D41: 3718 | E41: 2048 | F41: 1170 | G41: 3084 | H41: 2145 | I41: 11.8
A42: 37 | B42: Бердигестях ДБ | C42: 1225 | D42: 607 | E42: 558 | F42: 49 | G42: 618 | H42: 240 | I42: 20
A43: 38 | B43: Б-ка ГО "п. Жатай" | C43: 1573 | D43: 1573 | E43: 632 | F43: 242 | I43: 17.1
A44: 39 | B44: Алданский БИЦ* | C44: 3105 | D44: 2632 | E44: 1451 | F44: 537 | G44: 473 | I44: 19
A45: 40 | B45: Томмотский БИЦ* | C45: 3758 | D45: 3282 | E45: 1387 | F45: 547 | G45: 476 | I45: 18
B46: Итого по МБ | C46: =SUM(C6:C45) -> 312789 | D46: 237452 | E46: 82245 | F46: 51289 | G46: 75337 | H46: 19835 | I46: 15.8
B47: НБ РС(Я) | C47: 29402 | D47: 11326 | F47: 6969 | G47: 18076 | H47: 18076 | I47: 103.9
B48: ЦДЮ НБ РС(Я) | C48: 5415 | D48: 4956 | E48: 4438 | F48: 513 | G48: 459 | H48: 2216 | I48: 12.1
B49: РБС | C49: 2256 | D49: 545 | E49: 357 | F49: 125 | G49: 1711 | H49: 250 | I49: 28.1
B50: ВСЕГО | C50: =SUM(C46:C49) -> 349862 | D50: 254279 | E50: 87040 | F50: 58896 | G50: 95583 | H50: 40377 | I50: 23.2

Sheet т.2.2
F1: Таблица 2.2
B2: Количество пользователей в сельской местности
A3: № | B3: ЦБС | C3: всего из общего числа в с/местн. | D3: из них пользователей, обслуженных в стенах библиотеки | G3: из них во внестац | H3: из них удал. польз
D4: всего | E4: до 14 лет | F4: от 15-30
A7: 1 | B7: Абыйская | C7: 635 | D7: 339 | E7: 97 | F7: 51 | G7: 296
A8: 2 | B8: Аллаиховская | C8: 240 | D8: 202 | E8: 85 | F8: 48 | G8: 38
A9: 3 | B9: Амгинская | C9: 7401 | D9: 5837 | E9: 1855 | F9: 1449 | G9: 1564 | H9: 365
A10: 4 | B10: Анабарская | C10: 1870 | D10: 1469 | E10: 382 | F10: 274 | G10: 401
A11: 5 | B11: Булунская | C11: 2045 | D11: 1608 | E11: 588 | F11: 565 | G11: 437
A12: 6 | B12: Верхневилюйская | C12: 8184 | D12: 6826 | E12: 2235 | F12: 1584 | G12: 1358 | H12: 50
A13: 7 | B13: Верхнеколымская | C13: 1261 | D13: 1088 | E13: 289 | F13: 150 | G13: 173
A14: 8 | B14: Верхоянская | C14: 2242 | D14: 2048 | E14: 634 | F14: 382 | G14: 194
A15: 9 | B15: Вилюйская | C15: 4569 | D15: 4313 | E15: 1206 | F15: 885 | G15: 256
A16: 10 | B16: Горная | C16: 5733 | D16: 4558 | E16: 1020 | F16: 1319 | G16: 1175 | H16: 505
A17: 11 | B17: Жиганская | C17: 3841 | D17: 2973 | E17: 686 | F17: 517 | G17: 868
A18: 12 | B18: Кобяйская | C18: 3903 | D18: 3105 | E18: 1107 | F18: 657 | G18: 798
A19: 13 | B19: Ленская | C19: 2011 | D19: 1900 | E19: 730 | F19: 249 | G19: 111
A20: 14 | B20: Момская | C20: 2080 | D20: 1930 | E20: 630 | F20: 447 | G20: 150
A21: 15 | B21: Намская | C21: 6866 | D21: 5833 | E21: 2143 | F21: 1261 | G21: 1033 | H21: 107
A22: 16 | B22: Нижнеколымская | C22: 629 | D22: 629 | E22: 165 | F22: 183
A23: 17 | B23: Нюрбинская | C23: 9584 | D23: 6412 | E23: 2036 | F23: 1088 | G23: 3172
A24: 18 | B24: Оймяконская | C24: 1351 | D24: 1066 | E24: 312 | F24: 275 | G24: 285
A25: 19 | B25: Олекминская | C25: 4616 | D25: 3911 | E25: 1343 | F25: 740 | G25: 705
A26: 20 | B26: Оленекская | C26: 3155 | D26: 1111 | E26: 387 | F26: 369 | G26: 2044 | H26: 65
A27: 21 | B27: Среднеколымская | C27: 2751 | D27: 2486 | E27: 502 | F27: 436 | G27: 265
A28: 22 | B28: Сунтарская* | C28: 14622 | D28: 12432 | E28: 4042 | F28: 3179 | G28: 2190 | H28: 28
A29: 23 | B29: Таттинская | C29: 9404 | D29: 5451 | E29: 2084 | F29: 919 | G29: 3953 | H29: 332
A30: 24 | B30: Томпонская | C30: 2895 | D30: 2298 | E30: 685 | F30: 494 | G30: 597
A31: 25 | B31: Усть-Алданская | C31: 19659 | D31: 10087 | E31: 3240 | F31: 2422 | G31: 9572
A32: 26 | B32: Усть-Майская | C32: 1234 | D32: 1068 | E32: 359 | F32: 210 | G32: 166
A33: 27 | B33: Усть-Янская | C33: 1918 | D33: 1422 | E33: 385 | F33: 528 | G33: 496
A34: 28 | B34: Хангаласская* | C34: 7018 | D34: 4847 | E34: 1375 | F34: 883 | G34: 2171 | H34: 480
A35: 29 | B35: Чурапчинская | C35: 9554 | D35: 8702 | E35: 2770 | F35: 1716 | G35: 852 | H35: 247
A36: 30 | B36: Мирнинская | C36: 546 | D36: 494 | E36: 199 | F36: 90 | G36: 52
A37: 31 | B37: Нерюнгринская | C37: 931 | D37: 764 | E37: 213 | F37: 144 | G37: 167
A38: 32 | B38: Эвено-Бытантайская | C38: 970 | D38: 348 | E38: 217 | F38: 40 | G38: 622
A39: 33 | B39: Якутская | C39: 3597 | D39: 3576 | E39: 1467 | F39: 619 | G39: 21
A40: 34 | B40: Алданская* | C40: 670 | D40: 585 | E40: 280 | F40: 121 | G40: 85
A41: 35 | B41: М.-Кангаласская* | C41: 14203 | D41: 11140 | E41: 4435 | F41: 1992 | G41: 3063 | H41: 392
A42: 36 | B42: Бердигестях ДБ | C42: 1225 | D42: 607 | E42: 558 | F42: 49 | G42: 618 | H42: 240
A43: 37 | B43: Алданский БИЦ* | C43: 94 | D43: 92 | E43: 13 | F43: 21 | G43: 2
A44: 38 | B44: Томмотский БИЦ* | C44: 132 | D44: 102 | E44: 31 | F44: 19 | G44: 30
B45: Итого по РС(Я) | C45: =SUM(C7:C44) -> 163639 | D45: 123659 | E45: 40785 | F45: 26375 | G45: 39980 | H45: 2811

Sheet т.3
G1: Таблица 3
A2: Число посещений. Посещаемость
A3: № | B3: ЦБС | C3: Число посещений | F3: Посещаемость
C4: 2019 | D4: 2020 | E4: "+ -" | F4: 2019 | G4: 2020 | H4: "+ -"
A5: 1 | B5: Абыйская | C5: 37674 | D5: 18620 | E5: =D5-C5 -> -19054 | F5: 20.9 | G5: =т.3!D5/т.2!D6 -> 10.31578947 | H5: =G5 - F5 -> -10.58421053
A6: 2 | B6: Аллаиховская | C6: 11961 | D6: 3714 | E6: =D6-C6 -> -8247 | F6: 15.8 | G6: =т.3!D6/т.2!D7 -> 4.919205298 | H6: -10.8807947
A7: 3 | B7: Амгинская | C7: 105425 | D7: 56445 | E7: -48980 | F7: 14.2 | G7: =т.3!D7/т.2!D8 -> 7.626672071 | H7: -6.573327929
A8: 4 | B8: Анабарская | C8: 11550 | D8: 5681 | E8: -5869 | F8: 6.2 | G8: =т.3!D8/т.2!D9 -> 3.037967914 | H8: -3.162032086
A9: 5 | B9: Булунская | C9: 71374 | D9: 40611 | E9: -30763 | F9: 12.2 | G9: =т.3!D9/т.2!D10 -> 6.963477366 | H9: -5.236522634
A10: 6 | B10: Верхневилюйская | C10: 133110 | D10: 64181 | E10: -68929 | F10: 16.3 | G10: =т.3!D10/т.2!D11 -> 7.842253177 | H10: -8.457746823
A11: 7 | B11: Верхнеколымская | C11: 35916 | D11: 27119 | E11: -8797 | F11: 10.1 | G11: =т.3!D11/т.2!D12 -> 7.634853604 | H11: -2.465146396
A12: 8 | B12: Верхоянская | C12: 74364 | D12: 32114 | E12: -42250 | F12: 20.1 | G12: =т.3!D12/т.2!D13 -> 8.672427761 | H12: -11.42757224
A13: 9 | B13: Вилюйская | C13: 146866 | D13: 74032 | E13: -72834 | F13: 15.2 | G13: =т.3!D13/т.2!D14 -> 7.666148908 | H13: -7.533851092
A14: 10 | B14: Горная | C14: 70776 | D14: 36624 | E14: -34152 | F14: 12.3 | G14: =т.3!D14/т.2!D15 -> 6.388278388 | H14: -5.911721612
A15: 11 | B15: Жиганская | C15: 32486 | D15: 21386 | E15: -11100 | F15: 8.5 | G15: =т.3!D15/т.2!D16 -> 5.56782088 | H15: -2.93217912
A16: 12 | B16: Кобяйская | C16: 126434 | D16: 77927 | E16: -48507 | F16: 14.9 | G16: =т.3!D16/т.2!D17 -> 9.170040009 | H16: -5.729959991
A17: 13 | B17: Ленская | C17: 147819 | D17: 70112 | E17: -77707 | F17: 15.4 | G17: =т.3!D17/т.2!D18 -> 7.301051755 | H17: -8.098948245
A18: 14 | B18: Момская | C18: 29262 | D18: 17252 | E18: -12010 | F18: 14.1 | G18: =т.3!D18/т.2!D19 -> 8.294230769 | H18: -5.805769231
A19: 15 | B19: Намская | C19: 153267 | D19: 51697 | E19: -101570 | F19: 22.3 | G19: =т.3!D19/т.2!D20 -> 7.529420332 | H19: -14.77057967
A20: 16 | B20: Нижнеколымская | C20: 39741 | D20: 13730 | E20: -26011 | F20: 16.8 | G20: =т.3!D20/т.2!D21 -> 5.793248945 | H20: -11.00675105
A21: 17 | B21: Нюрбинская | C21: 148548 | D21: 70382 | E21: -78166 | F21: 7.7 | G21: =т.3!D21/т.2!D22 -> 3.656587697 | H21: -4.043412303
A22: 18 | B22: Оймяконская | C22: 55569 | D22: 28738 | E22: -26831 | F22: 19.5 | G22: =т.3!D22/т.2!D23 -> 10.09058989 | H22: -9.409410112
A23: 19 | B23: Олекминская | C23: 156599 | D23: 64415 | E23: -92184 | F23: 19.3 | G23: =т.3!D23/т.2!D24 -> 7.956398221 | H23: -11.34360178
A24: 20 | B24: Оленекская | C24: 23086 | D24: 10392 | E24: -12694 | F24: 7.3 | G24: =т.3!D24/т.2!D25 -> 3.293819334 | H24: -4.006180666
A25: 21 | B25: Среднеколымская | C25: 41325 | D25: 16029 | E25: -25296 | F25: 9.9 | G25: =т.3!D25/т.2!D26 -> 3.821888412 | H25: -6.078111588
A26: 22 | B26: Сунтарская* | C26: 121204 | D26: 86499 | E26: -34705 | F26: 8.3 | G26: =т.3!D26/т.2!D27 -> 5.91567501 | H26: -2.38432499
A27: 23 | B27: Таттинская | C27: 96573 | D27: 63284 | E27: -33289 | F27: 10.3 | G27: =т.3!D27/т.2!D28 -> 6.729476818 | H27: -3.570523182
A28: 24 | B28: Томпонская | C28: 67998 | D28: 44870 | E28: -23128 | F28: 10.9 | G28: =т.3!D28/т.2!D29 -> 7.160868177 | H28: -3.739131823
A29: 25 | B29: Усть-Алданская | C29: 205316 | D29: 202226 | E29: -3090 | F29: 10.4 | G29: =т.3!D29/т.2!D30 -> 10.28668803 | H29: -0.1133119691
A30: 26 | B30: Усть-Майская | C30: 70288 | D30: 63592 | E30: -6696 | F30: 14.1 | G30: =т.3!D30/т.2!D31 -> 12.78231156 | H30: -1.317688442
A31: 27 | B31: Усть-Янская | C31: 51261 | D31: 29469 | E31: -21792 | F31: 12.6 | G31: =т.3!D31/т.2!D32 -> 7.265532544 | H31: -5.334467456
A32: 28 | B32: Хангаласская* | C32: 178738 | D32: 86721 | E32: -92017 | F32: 8 | G32: =т.3!D32/т.2!D33 -> 3.877531858 | H32: -4.122468142
A33: 29 | B33: Чурапчинская | C33: 147693 | D33: 76758 | E33: -70935 | F33: 15.5 | G33: =т.3!D33/т.2!D34 -> 8.034121834 | H33: -7.465878166
A34: 30 | B34: Мирнинская | C34: 177904 | D34: 97387 | E34: -80517 | F34: 12.4 | G34: =т.3!D34/т.2!D35 -> 6.806947648 | H34: -5.593052352
A35: 31 | B35: Нерюнгринская | C35: 116325 | D35: 76055 | E35: -40270 | F35: 8.8 | G35: =т.3!D35/т.2!D36 -> 5.785850133 | H35: -3.014149867
A36: 32 | B36: Эвено-Бытантай | C36: 17452 | D36: 6362 | E36: -11090 | F36: 18 | G36: =т.3!D36/т.2!D37 -> 6.558762887 | H36: -11.44123711
A37: 33 | B37: Якутская | C37: 506017 | D37: 394540 | E37: -111477 | F37: 14.8 | G37: =т.3!D37/т.2!D38 -> 11.54300761 | H37: -3.256992393
A38: 34 | B38: Алданская* | C38: 132380 | D38: 106199 | E38: =D38-C38 -> -26181 | F38: 15.3 | G38: =т.3!D38/т.2!D39 -> 12.30009266 | H38: =G38 - F38 -> -2.999907343
A39: 35 | B39: М.-Кангаласская* | C39: 61334 | D39: 104471 | E39: =D39-C39 -> 43137 | F39: 4.1 | G39: =т.3!D39/т.2!D40 -> 7.012417774 | H39: =G39 - F39 -> 2.912417774
A40: 36 | B40: ГБ ГП "г.Нерюнгри " | C40: 94252 | D40: 50258 | E40: -43994 | F40: 13.9 | G40: =т.3!D40/т.2!D41 -> 7.388709203 | H40: -6.511290797
A41: 37 | B41: Сунтарская ДЮПБ | C41: 27269 | E41: -27269 | F41: 8.8 | G41: =т.3!D41/т.2!C42 -> 0 | H41: -8.8
A42: 38 | B42: Бердигестях ДБ | C42: 15164 | D42: 12547 | E42: -2617 | F42: 12.4 | G42: =т.3!D42/т.2!D43 -> 10.24244898 | H42: -2.15755102
A43: 39 | B43: Б-ка ГО "п. Жатай" | C43: 20823 | D43: 12462 | E43: -8361 | F43: 13.2 | G43: =т.3!D43/т.2!D44 -> 7.922441195 | H43: -5.277558805
A44: 40 | B44: Алданский БИЦ* | D44: 25411 | E44: =D44-C44 -> 25411 | F44: 11.6 | H44: =G44 - F44 -> -11.6
A45: 41 | B45: Томмотский БИЦ* | D45: 29186 | E45: 29186
B46: Итого по МБ | C46: =SUM(C5:C45) -> 3761143 | D46: =SUM(D5:D45) -> 2369498 | E46: -1391645 | F46: 8.7 | G46: =т.3!D46/т.2!D47 -> 7.575387881 | H46: -1.124612119
B47: НБ РС(Я) | C47: 223484 | D47: 84118 | E47: -139366 | F47: 7.6 | G47: =т.3!D47/т.2!D48 -> 2.860961839 | H47: -4.739038161
B48: ЦДЮ НБ РС(Я) | C48: 70662 | D48: 21431 | E48: -49231 | F48: 13 | G48: =т.3!D48/т.2!D49 -> 3.957710065 | H48: -9.042289935
B49: РБС | C49: 12291 | D49: 17456 | E49: 5165 | F49: 5.4 | G49: =т.3!D49/т.2!D50 -> 7.737588652 | H49: 2.337588652
B50: ВСЕГО | C50: =SUM(C46:C49) -> 4067580 | D50: =SUM(D46:D49) -> 2492503 | E50: =SUM(E46:E49) -> -1575077 | F50: 8.3 | G50: =т.3!D50/т.2!D51 -> 7.124246131 | H50: =G50-F50 -> -1.175753869
B51: КДУ | C51: 175512 | E51: =D51-C51 -> -175512 | F51: 8.1 | G51: =т.3!D51/т.2!C52 -> 0 | H51: =G51-F51 -> -8.1
B52: Итого по РС(Я) | C52: =SUM(C50:C51) -> 4243092 | D52: =SUM(D50:D51) -> 2492503 | E52: =D52-C52 -> -1750589 | F52: 8.3 | G52: =т.3!D52/т.2!D53 -> 7.124246131 | H52: =G52-F52 -> -1.175753869

Sheet т.4
H1: Таблица 4
A2: Движение библиотечного фонда .
C3: Сост. на | D3: Поступило | F3: Выбыло | H3: Сост. на
A4: № | B4: ЦБС | C4: 2020-01-01 | D4: (экз) | E4: из них вновь приобрет. (экз). | F4: (экз.) | G4: из них без учета фонда з/б | H4: 2021-01-01
A5: 1 | B5: Абыйская | C5: 82846 | D5: 1876 | E5: 1876 | F5: 2914 | G5: 2914 | H5: =C5+D5-F5 -> 81808
A6: 2 | B6: Аллаиховская | C6: 76287 | D6: 774 | E6: 774 | H6: 77061
A7: 3 | B7: Амгинская | C7: 190910 | D7: 7832 | E7: 7832 | F7: 7787 | G7: 7787 | H7: 190955
A8: 4 | B8: Анабарская | C8: 23376 | D8: 1004 | E8: 1004 | F8: 12 | G8: 12 | H8: 24368
A9: 5 | B9: Булунская | C9: 145380 | D9: 2128 | E9: 2128 | F9: 975 | G9: 975 | H9: 146533
A10: 6 | B10: Верхневилюйская | C10: 234066 | D10: 6162 | E10: 6162 | F10: 6332 | G10: 6332 | H10: 233896
A11: 7 | B11: Верхнеколымская | C11: 110280 | D11: 4474 | E11: 4474 | F11: 3807 | G11: 3807 | H11: 110947
A12: 8 | B12: Верхоянская | C12: 214188 | D12: 8343 | E12: 8343 | F12: 6364 | G12: 6364 | H12: 216167
A13: 9 | B13: Вилюйская | C13: 263693 | D13: 5112 | E13: 5112 | F13: 3585 | G13: 3585 | H13: 265220
A14: 10 | B14: Горная | C14: 99036 | D14: 3028 | E14: 3028 | F14: 843 | G14: 843 | H14: 101221
A15: 11 | B15: Жиганская | C15: 54756 | D15: 342 | E15: 342 | F15: 256 | G15: 256 | H15: 54842
A16: 12 | B16: Кобяйская | C16: 194450 | D16: 5068 | E16: 5068 | F16: 3087 | G16: 3087 | H16: 196431
A17: 13 | B17: Ленская | C17: 200495 | D17: 11304 | E17: 11304 | F17: 8459 | G17: 8459 | H17: 203340
A18: 14 | B18: Момская | C18: 86376 | D18: 916 | E18: 916 | F18: 1040 | G18: 1040 | H18: 86252
A19: 15 | B19: Намская | C19: 216953 | D19: 10261 | E19: 10261 | F19: 17757 | G19: 17757 | H19: 209457
A20: 16 | B20: Нижнеколымская | C20: 99756 | D20: 1552 | E20: 1514 | F20: 1417 | G20: 1417 | H20: 99891
A21: 17 | B21: Нюрбинская | C21: 327249 | D21: 4156 | E21: 4156 | F21: 4525 | G21: 4525 | H21: 326880
A22: 18 | B22: Оймяконская | C22: 117754 | D22: 1214 | E22: 1214 | F22: 3087 | G22: 3087 | H22: 115881
A23: 19 | B23: Олекминская | C23: 282591 | D23: 4968 | E23: 4968 | F23: 7123 | G23: 7123 | H23: 280436
A24: 20 | B24: Оленекская | C24: 78020 | D24: 1130 | E24: 1130 | F24: 24404 | G24: 24404 | H24: 54746
A25: 21 | B25: Среднеколымская | C25: 122128 | D25: 3990 | E25: 3990 | F25: 3570 | G25: 3570 | H25: 122548
A26: 22 | B26: Сунтарская* | C26: 200400 | D26: 77651 | E26: 8194 | F26: 47032 | G26: 47032 | H26: 231019
A27: 23 | B27: Таттинская | C27: 210794 | D27: 5803 | E27: 5803 | F27: 5671 | G27: 5671 | H27: 210926
A28: 24 | B28: Томпонская | C28: 177613 | D28: 2513 | E28: 2513 | F28: 5489 | G28: 5489 | H28: 174637
A29: 25 | B29: Усть-Алданская | C29: 413869 | D29: 18557 | E29: 18557 | F29: 17821 | G29: 17821 | H29: 414605
A30: 26 | B30: Усть-Майская | C30: 128217 | D30: 3854 | E30: 3854 | F30: 4746 | G30: 4746 | H30: 127325
A31: 27 | B31: Усть-Янская | C31: 169688 | D31: 1316 | E31: 1316 | H31: 171004
A32: 28 | B32: Хангаласская* | C32: 339641 | D32: 32328 | E32: 7579 | F32: 40756 | G32: 16007 | H32: 331213
A33: 29 | B33: Чурапчинская | C33: 270368 | D33: 8304 | E33: 8304 | F33: 5697 | G33: 5697 | H33: 272975
A34: 30 | B34: Мирнинская | C34: 243649 | D34: 7532 | E34: 7532 | F34: 10368 | G34: 10368 | H34: 240813
A35: 31 | B35: Нерюнгринская | C35: 141016 | D35: 3900 | E35: 3862 | F35: 4750 | G35: 4750 | H35: 140166
A36: 32 | B36: Эвено-Бытантайская | C36: 42342 | D36: 481 | E36: 481 | F36: 500 | G36: 500 | H36: 42323
A37: 33 | B37: Якутская | C37: 451880 | D37: 37957 | E37: 27214 | F37: 30493 | G37: 30493 | H37: 459344
A38: 34 | B38: Алданская* | C38: 53633 | D38: 79375 | E38: 6401 | F38: 14246 | G38: 4480 | H38: 118762
A39: 35 | B39: Мегино-Кангаласская* | C39: 104194 | D39: 355392 | E39: 5795 | F39: 4065 | G39: 4065 | H39: 455521
A40: 36 | B40: ГБ ГП "г.Нерюнгри " | C40: 115316 | D40: 1831 | E40: 1831 | F40: 5130 | G40: 5130 | H40: 112017
A41: 37 | B41: Сунтарская ДЮПБ | C41: 50356 | F41: 50356
A42: 38 | B42: Бердигестях ДБ | C42: 15444 | D42: 318 | E42: 318 | H42: 15762
A43: 39 | B43: Б-ка ГО "п. Жатай" | C43: 20603 | D43: 251 | E43: 251 | F43: 78 | G43: 78 | H43: =C43+D43-F43 -> 20776
A44: 40 | B44: Алданский БИЦ* | C44: 34530 | D44: 1284 | E44: 1284 | F44: 1272 | G44: 1272 | H44: =C44+D44-F44 -> 34542
A45: 41 | B45: Томмотский БИЦ* | C45: 40917 | D45: 3113 | E45: 3113 | F45: 2677 | G45: 2677 | H45: 41353
B46: Итого по МБ | C46: =SUM(C5:C45) -> 6445060 | D46: 727394 | E46: 199798 | F46: 358491 | G46: 273620 | H46: 6813963
B47: НБ РС(Я) | C47: 1633511 | D47: 22167 | E47: 22167 | H47: =C47+D47-F47 -> 1655678
B48: ЦДЮ НБ РС(Я) | C48: 167116 | D48: 3911 | E48: 3911 | H48: =C48+D48-F48 -> 171027
B49: РБС | C49: 139979 | D49: 6630 | E49: 6630 | F49: 1031 | G49: 1031 | H49: =C49+D49-F49 -> 145578
B50: ВСЕГО | C50: =SUM(C46:C49) -> 8385666 | D50: 760102 | E50: 232506 | F50: 359522 | G50: 274651 | H50: 8786246
B51: КДУ | C51: 431906 | F51: 431906
B52: Итого по РС(Я) | C52: =SUM(C50:C51) -> 8817572 | D52: 760102 | E52: 232506 | F52: 791428 | G52: 274651 | H52: 8786246

Sheet т.4.1
G1: Таблица 4.1
A2: Библиотечный фонд
A4: № | B4: ЦБС | C4: 2019 | D4: 2020 | E4: "+ -" | F4: в городе | G4: в сельск.местн.
A5: 1 | B5: Абыйская | C5: 82846 | D5: 81808 | E5: =D5-C5 -> -1038 | F5: =D5-G5 -> 35979 | G5: 45829
A6: 2 | B6: Аллаиховская | C6: 76287 | D6: 77061 | E6: =D6-C6 -> 774 | F6: =D6-G6 -> 47814 | G6: 29247
A7: 3 | B7: Амгинская | C7: 190910 | D7: 190955 | E7: 45 | F7: =D7-G7 -> 0 | G7: 190955
A8: 4 | B8: Анабарская | C8: 23376 | D8: 24368 | E8: 992 | F8: 0 | G8: 24368
A9: 5 | B9: Булунская | C9: 145380 | D9: 146533 | E9: 1153 | F9: 68231 | G9: 78302
A10: 6 | B10: Верхневилюйская | C10: 234066 | D10: 233896 | E10: -170 | F10: 0 | G10: 233896
A11: 7 | B11: Верхнеколымская | C11: 110280 | D11: 110947 | E11: 667 | F11: 64373 | G11: 46574
A12: 8 | B12: Верхоянская | C12: 214188 | D12: 216167 | E12: 1979 | F12: 94022 | G12: 122145
A13: 9 | B13: Вилюйская | C13: 263693 | D13: 265220 | E13: 1527 | F13: 87887 | G13: 177333
A14: 10 | B14: Горная | C14: 99036 | D14: 101221 | E14: 2185 | F14: 0 | G14: 101221
A15: 11 | B15: Жиганская | C15: 54756 | D15: 54842 | E15: 86 | F15: 0 | G15: 54842
A16: 12 | B16: Кобяйская | C16: 194450 | D16: 196431 | E16: 1981 | F16: 47959 | G16: 148472
A17: 13 | B17: Ленская | C17: 200495 | D17: 203340 | E17: 2845 | F17: 117263 | G17: 86077
A18: 14 | B18: Момская | C18: 86376 | D18: 86252 | E18: -124 | F18: 0 | G18: 86252
A19: 15 | B19: Намская | C19: 216953 | D19: 209457 | E19: -7496 | F19: 0 | G19: 209457
A20: 16 | B20: Нижнеколымская | C20: 99756 | D20: 99891 | E20: 135 | F20: 69409 | G20: 30482
A21: 17 | B21: Нюрбинская | C21: 327249 | D21: 326880 | E21: -369 | F21: 86859 | G21: 240021
A22: 18 | B22: Оймяконская | C22: 117754 | D22: 115881 | E22: -1873 | F22: 42703 | G22: 73178
A23: 19 | B23: Олекминская | C23: 282591 | D23: 280436 | E23: -2155 | F23: 68106 | G23: 212330
A24: 20 | B24: Оленекская | C24: 78020 | D24: 54746 | E24: -23274 | F24: 0 | G24: 54746
A25: 21 | B25: Среднеколымская | C25: 122128 | D25: 122548 | E25: 420 | F25: 51256 | G25: 71292
A26: 22 | B26: Сунтарская* | C26: 200400 | D26: 231019 | E26: 30619 | F26: 0 | G26: 231019
A27: 23 | B27: Таттинская | C27: 210794 | D27: 210926 | E27: 132 | F27: 0 | G27: 210926
A28: 24 | B28: Томпонская | C28: 177613 | D28: 174637 | E28: -2976 | F28: 73611 | G28: 101026
A29: 25 | B29: Усть-Алданская | C29: 413869 | D29: 414605 | E29: 736 | F29: 0 | G29: 414605
A30: 26 | B30: Усть-Майская | C30: 128217 | D30: 127325 | E30: -892 | F30: 83586 | G30: 43739
A31: 27 | B31: Усть-Янская | C31: 169688 | D31: 171004 | E31: 1316 | F31: 84553 | G31: 86451
A32: 28 | B32: Хангаласская | C32: 339641 | D32: 331213 | E32: -8428 | F32: 111894 | G32: 219319
A33: 29 | B33: Чурапчинская | C33: 270368 | D33: 272975 | E33: 2607 | F33: 0 | G33: 272975
A34: 30 | B34: Мирнинская | C34: 243649 | D34: 240813 | E34: -2836 | F34: 198393 | G34: 42420
A35: 31 | B35: Нерюнгринская | C35: 141016 | D35: 140166 | E35: -850 | F35: 117730 | G35: 22436
A36: 32 | B36: Эвено-Бытантайская | C36: 42342 | D36: 42323 | E36: -19 | F36: 0 | G36: 42323
A37: 33 | B37: Якутская | C37: 451880 | D37: 459344 | E37: =D37-C37 -> 7464 | F37: =D37-G37 -> 397942 | G37: 61402
A38: 34 | B38: Алданская* | C38: 53633 | D38: 118762 | E38: =D38-C38 -> 65129 | F38: =D38-G38 -> 83660 | G38: 35102
A39: 35 | B39: Мегино-Кангаласская* | C39: 104194 | D39: 455521 | E39: =D39-C39 -> 351327 | F39: =D39-G39 -> 13547 | G39: 441974
A40: 36 | B40: ГБ ГП "г.Нерюнгри " | C40: 115316 | D40: 112017 | E40: -3299 | F40: 112017 | G40: 0
A41: 37 | B41: Сунтарская ДЮПБ | C41: 50356 | E41: -50356 | F41: 0
A42: 38 | B42: Бердигестях ДБ | C42: 15444 | D42: 15762 | F42: =D42-G42 -> 0 | G42: 15762
A43: 39 | B43: Б-ка ГО "п. Жатай" | C43: 20603 | D43: 20776 | E43: =D43-C43 -> 173 | F43: 20776 | G43: 0
A44: 40 | B44: Алданский БИЦ* | C44: 34530 | D44: 34542 | F44: =D44-G44 -> 27858 | G44: 6684
A45: 41 | B45: Томмотский БИЦ* | C45: 40917 | D45: 41353 | F45: 35988 | G45: 5365
B46: Итого по МБ | C46: =SUM(C5:C45) -> 6445060 | D46: =SUM(D5:D45) -> 6813963 | E46: 368903 | F46: =SUM(F5:F45) -> 2243416 | G46: =SUM(G5:G45) -> 4570547
B47: НБ РС(Я) | C47: 1633511 | D47: 1655678 | E47: 22167 | F47: 1655678 | G47: 0
B48: ЦДЮ НБ РС(Я) | C48: 167116 | D48: 171027 | E48: 3911 | F48: 171027 | G48: 0
B49: РБС | C49: 139979 | D49: 145578 | E49: 5599 | F49: 145578 | G49: 0
B50: ВСЕГО | C50: =SUM(C46:C49) -> 8385666 | D50: =SUM(D46:D49) -> 8786246 | E50: 400580 | F50: =SUM(F46:F49) -> 4215699 | G50: =SUM(G46:G49) -> 4570547
B51: КДУ | C51: 431906 | E51: =D51-C51 -> -431906 | F51: =D51-G51 -> 0
B52: Итого по РС(Я) | C52: =SUM(C50:C51) -> 8817572 | D52: =SUM(D50:D51) -> 8786246 | E52: =SUM(E50:E51) -> -31326 | F52: =SUM(F50:F51) -> 4215699 | G52: =SUM(G50:G51) -> 4570547

Sheet т.4.2
J1: Таблица 4.2
A2: Новые поступления в библиотечный фонд (экз.)
E3: в том числе | I3: спец. | J3: на яз. | K3: на
A4: № | B4: ЦБС | C4: 2019 | D4: 2020 | E4: печ.изд. | F4: из них | G4: эл.док. | H4: док. на | J4: нар.РФ | K4: иностр. | L4: "+ -"
E5: неопуб. | F5: книг | G5: съемн | H5: др.вид. | I5: док. | J5: кр.рус.яз. | K5: яз.
A6: 1 | B6: Абыйская | C6: 2063 | D6: 1876 | E6: 1873 | F6: 1290 | G6: 3 | J6: 1014 | L6: =D6-C6 -> -187
A7: 2 | B7: Аллаиховская | C7: 1019 | D7: 774 | E7: 774 | F7: 682 | J7: 281 | L7: -245
A8: 3 | B8: Амгинская | C8: 8685 | D8: 7832 | E8: 7780 | F8: 3497 | G8: 52 | I8: 15 | J8: 1643 | L8: -853
A9: 4 | B9: Анабарская | C9: 560 | D9: 1004 | E9: 971 | F9: 947 | G9: 33 | I9: 82 | J9: 287 | L9: 444
A10: 5 | B10: Булунская | C10: 1532 | D10: 2128 | E10: 2120 | F10: 1443 | G10: 8 | J10: 654 | L10: 596
A11: 6 | B11: Верхневилюйская | C11: 16901 | D11: 6162 | E11: 6098 | F11: 4091 | G11: 58 | H11: 6 | I11: 14 | J11: 3944 | L11: -10739
A12: 7 | B12: Верхнеколымская | C12: 4650 | D12: 4474 | E12: 4474 | F12: 1898 | J12: 666 | L12: -176
A13: 8 | B13: Верхоянская | C13: 9011 | D13: 8343 | E13: 8324 | F13: 4711 | H13: 19 | J13: 2800 | L13: -668
A14: 9 | B14: Вилюйская | C14: 6492 | D14: 5112 | E14: 5086 | F14: 4476 | G14: 26 | J14: 2096 | L14: -1380
A15: 10 | B15: Горная | C15: 3607 | D15: 3028 | E15: 3028 | F15: 1640 | J15: 1459 | L15: -579
A16: 11 | B16: Жиганская | C16: 2785 | D16: 342 | E16: 337 | F16: 241 | G16: 5 | J16: 8 | L16: -2443
A17: 12 | B17: Кобяйская | C17: 5851 | D17: 5068 | E17: 5068 | F17: 2688 | J17: 2230 | L17: -783
A18: 13 | B18: Ленская | C18: 13615 | D18: 11304 | E18: 11304 | F18: 5503 | J18: 924 | L18: -2311
A19: 14 | B19: Момская | C19: 1111 | D19: 916 | E19: 916 | F19: 523 | J19: 318 | L19: -195
A20: 15 | B20: Намская | C20: 13891 | D20: 10261 | E20: 10260 | F20: 4332 | G20: 1 | J20: 1676 | L20: -3630
A21: 16 | B21: Нижнеколымская | C21: 2233 | D21: 1514 | E21: 1514 | F21: 35 | L21: -719
A22: 17 | B22: Нюрбинская | C22: 5050 | D22: 4156 | E22: 4150 | F22: 1984 | G22: 6 | J22: 2043 | L22: -894
A23: 18 | B23: Оймяконская | C23: 1555 | D23: 1214 | E23: 1214 | F23: 1104 | J23: 619 | L23: -341
A24: 19 | B24: Олекминская | C24: 11027 | D24: 4968 | E24: 4848 | F24: 3550 | G24: 120 | J24: 1332 | L24: -6059
A25: 20 | B25: Оленекская | C25: 1506 | D25: 1130 | E25: 1130 | F25: 1130 | J25: 204 | L25: -376
A26: 21 | B26: Среднеколымская | C26: 4864 | D26: 3990 | E26: 3990 | F26: 1457 | J26: 762 | L26: -874
A27: 22 | B27: Сунтарская* | C27: 11004 | D27: 8194 | E27: 8175 | F27: 5445 | G27: 19 | J27: 3877 | K27: 24 | L27: -2810
A28: 23 | B28: Таттинская | C28: 8804 | D28: 5803 | E28: 5802 | F28: 2355 | G28: 1 | J28: 2318 | K28: 4 | L28: -3001
A29: 24 | B29: Томпонская | C29: 5791 | D29: 2513 | E29: 2513 | F29: 1964 | J29: 619 | L29: -3278
A30: 25 | B30: Усть-Алданская | C30: 21876 | D30: 18557 | E30: 18557 | F30: 4771 | J30: 4064 | L30: -3319
A31: 26 | B31: Усть-Майская | C31: 4110 | D31: 3854 | E31: 3854 | F31: 1468 | J31: 210 | L31: -256
A32: 27 | B32: Усть-Янская | C32: 1122 | D32: 1316 | E32: 1316 | F32: 538 | J32: 100 | L32: 194
A33: 28 | B33: Хангаласская | C33: 12138 | D33: 7579 | E33: 7578 | F33: 3426 | G33: 1 | J33: 2062 | K33: 3 | L33: -4559
A34: 29 | B34: Чурапчинская | C34: 8552 | D34: 8304 | E34: 8294 | F34: 3127 | G34: 10 | J34: 3369 | L34: -248
A35: 30 | B35: Мирнинская | C35: 8989 | D35: 7532 | E35: 7532 | F35: 3011 | J35: 873 | K35: 1 | L35: -1457
A36: 31 | B36: Нерюнгринская | C36: 5092 | D36: 3862 | E36: 3862 | F36: 2456 | J36: 312 | L36: -1230
A37: 32 | B37: Эвено-Бытантайская | C37: 588 | D37: 481 | E37: 481 | F37: 375 | J37: 249 | L37: -107
A38: 33 | B38: Якутская | C38: 39545 | D38: 27214 | E38: 27212 | F38: 14715 | G38: 2 | J38: 4609 | K38: 7 | L38: =D38-C38 -> -12331
A39: 34 | B39: Алданская* | C39: 22586 | D39: 6401 | E39: 5953 | F39: 4400 | G39: 448 | J39: 297 | L39: =D39-C39 -> -16185
A40: 35 | B40: Мег.-Кангаласская* | C40: 1457 | D40: 5795 | E40: 5793 | F40: 4944 | G40: 2 | J40: 2601 | L40: =D40-C40 -> 4338
A41: 36 | B41: ГБ ГП "г.Нерюнгри " | C41: 4265 | D41: 1831 | E41: 1831 | F41: 581 | J41: 79 | L41: -2434
A42: 37 | B42: Сунтарская ДЮПБ | C42: 1166 | L42: -1166
A43: 38 | B43: Бердигестях ДБ | C43: 1521 | D43: 318 | E43: 318 | F43: 308 | J43: 142 | L43: -1203
A44: 39 | B44: Б-ка ГО "п. Жатай" | C44: 233 | D44: 251 | E44: 251 | F44: 244 | J44: 5 | L44: =D44-C44 -> 18
A45: 40 | B45: Алданский БИЦ* | D45: 1284 | E45: 1284 | F45: 690 | I45: 116 | J45: 24 | L45: 1284
A46: 41 | B46: Томмотский БИЦ* | D46: 3113 | E46: 3113 | F46: 1709 | J46: 72 | L46: 3113
B47: Итого по МБ | C47: =SUM(C6:C46) -> 276847 | D47: 199798 | E47: 198978 | F47: 103749 | G47: 795 | H47: 25 | I47: 227 | J47: 50842 | K47: 39 | L47: -77049
B48: НБ РС(Я) | C48: 21121 | D48: 22167 | E48: 22149 | F48: 14673 | G48: 14 | H48: 4 | J48: 2089 | K48: 68 | L48: 1046
B49: ЦДЮ НБ РС(Я) | C49: 6249 | D49: 3911 | E49: 3911 | F49: 1676 | J49: 373 | K49: 16 | L49: -2338
B50: РБС | C50: 6310 | D50: 6630 | E50: 1460 | F50: 776 | G50: 3510 | H50: 1660 | I50: 6121 | J50: 165 | L50: 320
B51: ВСЕГО | C51: =SUM(C47:C50) -> 310527 | D51: =SUM(D47:D50) -> 232506 | E51: 226498 | F51: =SUM(F47:F50) -> 120874 | G51: 4319 | H51: =SUM(H47:H50) -> 1689 | I51: =SUM(I47:I50) -> 6348 | J51: 53469 | K51: =SUM(K44:K50) -> 123 | L51: -78021

Sheet т.5
F1: Таблица 5
A2: Относительные показатели библиотек республики
A4: № | B4: ЦБС | C4: Документообесп. жителей | D4: Документообесп. польз. | E4: Обращаемость библ.фонда | F4: Обновляемость библ.фонда
A5: 1 | B5: Абыйская | C5: =(т.4!H5/т.1!C8)/1000 -> 20.452 | D5: ='т.4.1'!D5/т.2!D6 -> 45.32299169 | E5: =т.6!D5/'т.4.1'!D5 -> 0.3875048895 | F5: ='[1]т.4.2'!D6/'т.4.1'!D5*100 -> 2.196606689
A6: 2 | B6: Аллаиховская | C6: =(т.4!H6/т.1!C9)/1000 -> 28.54111111 | D6: ='т.4.1'!D6/т.2!D7 -> 102.0675497 | E6: =т.6!D6/'т.4.1'!D6 -> 0.2068620963 | F6: ='т.4.2'!D7/'т.4.1'!D6*100 -> 1.004399112
A7: 3 | B7: Амгинская | C7: =(т.4!H7/т.1!C10)/1000 -> 11.36636905 | D7: ='т.4.1'!D7/т.2!D8 -> 25.80124308 | E7: =т.6!D7/'т.4.1'!D7 -> 0.6462203137 | F7: ='т.4.2'!D8/'т.4.1'!D7*100 -> 4.10148988
A8: 4 | B8: Анабарская | C8: =(т.4!H8/т.1!C11)/1000 -> 6.585945946 | D8: ='т.4.1'!D8/т.2!D9 -> 13.03101604 | E8: =т.6!D8/'т.4.1'!D8 -> 0.8943286277 | F8: ='т.4.2'!D9/'т.4.1'!D8*100 -> 4.120157584
A9: 5 | B9: Булунская | C9: =(т.4!H9/т.1!C12)/1000 -> 17.23917647 | D9: ='т.4.1'!D9/т.2!D10 -> 25.12568587 | E9: =т.6!D9/'т.4.1'!D9 -> 0.773313861 | F9: ='т.4.2'!D10/'т.4.1'!D9*100 -> 1.452232603
A10: 6 | B10: Верхневилюйская* | C10: =(т.4!H10/т.1!C13)/1000 -> 11.13790476 | D10: ='т.4.1'!D10/т.2!D11 -> 28.57966764 | E10: =т.6!D10/'т.4.1'!D10 -> 0.639566303 | F10: ='т.4.2'!D11/'т.4.1'!D10*100 -> 2.634504224
A11: 7 | B11: Верхнеколымская | C11: =(т.4!H11/т.1!C14)/1000 -> 27.73675 | D11: ='т.4.1'!D11/т.2!D12 -> 31.23507883 | E11: =т.6!D11/'т.4.1'!D11 -> 0.7529721399 | F11: ='т.4.2'!D12/'т.4.1'!D11*100 -> 4.032556085
A12: 8 | B12: Верхоянская | C12: =(т.4!H12/т.1!C15)/1000 -> 19.4745045 | D12: ='т.4.1'!D12/т.2!D13 -> 58.37618147 | E12: =т.6!D12/'т.4.1'!D12 -> 0.290715049 | F12: ='т.4.2'!D13/'т.4.1'!D12*100 -> 3.859516022
A13: 9 | B13: Вилюйская | C13: =(т.4!H13/т.1!C16)/1000 -> 10.6088 | D13: ='т.4.1'!D13/т.2!D14 -> 27.46401574 | E13: =т.6!D13/'т.4.1'!D13 -> 0.7216461805 | F13: ='т.4.2'!D14/'т.4.1'!D13*100 -> 1.927456451
A14: 10 | B14: Горная | C14: =(т.4!H14/т.1!C17)/1000 -> 8.365371901 | D14: ='т.4.1'!D14/т.2!D15 -> 17.65585208 | E14: =т.6!D14/'т.4.1'!D14 -> 0.81537428 | F14: ='т.4.2'!D15/'т.4.1'!D14*100 -> 2.991474101
A15: 11 | B15: Жиганская | C15: =(т.4!H15/т.1!C18)/1000 -> 13.37609756 | D15: ='т.4.1'!D15/т.2!D16 -> 14.27805259 | E15: =т.6!D15/'т.4.1'!D15 -> 0.6936654389 | F15: ='т.4.2'!D16/'т.4.1'!D15*100 -> 0.6236096422
A16: 12 | B16: Кобяйская | C16: =(т.4!H16/т.1!C19)/1000 -> 16.23396694 | D16: ='т.4.1'!D16/т.2!D17 -> 23.11496823 | E16: =т.6!D16/'т.4.1'!D16 -> 0.6825908334 | F16: ='т.4.2'!D17/'т.4.1'!D16*100 -> 2.580040829
A17: 13 | B17: Ленская | C17: =(т.4!H17/т.1!C20)/1000 -> 5.601652893 | D17: ='т.4.1'!D17/т.2!D18 -> 21.17463293 | E17: =т.6!D17/'т.4.1'!D17 -> 0.7163125799 | F17: ='т.4.2'!D18/'т.4.1'!D17*100 -> 5.559161995
A18: 14 | B18: Момская | C18: =(т.4!H18/т.1!C21)/1000 -> 21.563 | D18: ='т.4.1'!D18/т.2!D19 -> 41.46730769 | E18: =т.6!D18/'т.4.1'!D18 -> 0.3880257849 | F18: ='т.4.2'!D19/'т.4.1'!D18*100 -> 1.062004359
A19: 15 | B19: Намская | C19: =(т.4!H19/т.1!C22)/1000 -> 8.411927711 | D19: ='т.4.1'!D19/т.2!D20 -> 30.50640839 | E19: =т.6!D19/'т.4.1'!D19 -> 0.4613787078 | F19: ='т.4.2'!D20/'т.4.1'!D19*100 -> 4.898857522
A20: 16 | B20: Нижнеколымская | C20: =(т.4!H20/т.1!C23)/1000 -> 23.23046512 | D20: ='т.4.1'!D20/т.2!D21 -> 42.14810127 | E20: =т.6!D20/'т.4.1'!D20 -> 0.3261054549 | F20: ='т.4.2'!D21/'т.4.1'!D20*100 -> 1.515652061
A21: 17 | B21: Нюрбинская | C21: =(т.4!H21/т.1!C24)/1000 -> 13.85084746 | D21: ='т.4.1'!D21/т.2!D22 -> 16.98254364 | E21: =т.6!D21/'т.4.1'!D21 -> 0.5396169848 | F21: ='т.4.2'!D22/'т.4.1'!D21*100 -> 1.271414586
A22: 18 | B22: Оймяконская | C22: =(т.4!H22/т.1!C25)/1000 -> 14.66848101 | D22: ='т.4.1'!D22/т.2!D23 -> 40.68855337 | E22: =т.6!D22/'т.4.1'!D22 -> 0.4718547475 | F22: ='т.4.2'!D23/'т.4.1'!D22*100 -> 1.047626444
A23: 19 | B23: Олекминская | C23: =(т.4!H23/т.1!C26)/1000 -> 11.44636735 | D23: ='т.4.1'!D23/т.2!D24 -> 34.63883399 | E23: =т.6!D23/'т.4.1'!D23 -> 0.4911887204 | F23: ='т.4.2'!D24/'т.4.1'!D23*100 -> 1.771527193
A24: 20 | B24: Оленекская | C24: =(т.4!H24/т.1!C27)/1000 -> 13.0347619 | D24: ='т.4.1'!D24/т.2!D25 -> 17.35213946 | E24: =т.6!D24/'т.4.1'!D24 -> 0.5957330216 | F24: ='т.4.2'!D25/'т.4.1'!D24*100 -> 2.064077741
A25: 21 | B25: Среднеколымская | C25: =(т.4!H25/т.1!C28)/1000 -> 16.78739726 | D25: ='т.4.1'!D25/т.2!D26 -> 29.21983786 | E25: =т.6!D25/'т.4.1'!D25 -> 0.2883604792 | F25: ='т.4.2'!D26/'т.4.1'!D25*100 -> 3.255867089
A26: 22 | B26: Сунтарская | C26: =(т.4!H26/т.1!C29)/1000 -> 9.872606838 | D26: ='т.4.1'!D26/т.2!D27 -> 15.79941185 | E26: =т.6!D26/'т.4.1'!D26 -> 0.8329055186 | F26: ='т.4.2'!D27/'т.4.1'!D26*100 -> 3.546894411
A27: 23 | B27: Таттинская | C27: =(т.4!H27/т.1!C30)/1000 -> 13.02012346 | D27: ='т.4.1'!D27/т.2!D28 -> 22.42939175 | E27: =т.6!D27/'т.4.1'!D27 -> 0.9192370784 | F27: ='т.4.2'!D28/'т.4.1'!D27*100 -> 2.751201843
A28: 24 | B28: Томпонская | C28: =(т.4!H28/т.1!C31)/1000 -> 13.97096 | D28: ='т.4.1'!D28/т.2!D29 -> 27.87057134 | E28: =т.6!D28/'т.4.1'!D28 -> 0.6757216397 | F28: ='т.4.2'!D29/'т.4.1'!D28*100 -> 1.438984866
A29: 25 | B29: Усть-Алданская | C29: =(т.4!H29/т.1!C32)/1000 -> 20.22463415 | D29: ='т.4.1'!D29/т.2!D30 -> 21.08983163 | E29: =т.6!D29/'т.4.1'!D29 -> 0.7463465226 | F29: ='т.4.2'!D30/'т.4.1'!D29*100 -> 4.475826389
A30: 26 | B30: Усть-Майская | C30: =(т.4!H30/т.1!C33)/1000 -> 16.97666667 | D30: ='т.4.1'!D30/т.2!D31 -> 25.59296482 | E30: =т.6!D30/'т.4.1'!D30 -> 1.088482231 | F30: ='т.4.2'!D31/'т.4.1'!D30*100 -> 3.026899666
A31: 27 | B31: Усть-Янская | C31: =(т.4!H31/т.1!C34)/1000 -> 24.42914286 | D31: ='т.4.1'!D31/т.2!D32 -> 42.16074951 | E31: =т.6!D31/'т.4.1'!D31 -> 0.4383230802 | F31: ='т.4.2'!D32/'т.4.1'!D31*100 -> 0.7695726416
A32: 28 | B32: Хангаласская | C32: =(т.4!H32/т.1!C35)/1000 -> 10.09795732 | D32: ='т.4.1'!D32/т.2!D33 -> 14.80943438 | E32: =т.6!D32/'т.4.1'!D32 -> 0.5892522335 | F32: ='т.4.2'!D33/'т.4.1'!D32*100 -> 2.288255594
A33: 29 | B33: Чурапчинская | C33: =(т.4!H33/т.1!C36)/1000 -> 12.99880952 | D33: ='т.4.1'!D33/т.2!D34 -> 28.57180239 | E33: =т.6!D33/'т.4.1'!D33 -> 0.6420807766 | F33: ='т.4.2'!D34/'т.4.1'!D33*100 -> 3.042036817
A34: 30 | B34: Мирнинская | C34: =(т.4!H34/т.1!C37)/1000 -> 3.335360111 | D34: ='т.4.1'!D34/т.2!D35 -> 16.83183057 | E34: =т.6!D34/'т.4.1'!D34 -> 1.14978012 | F34: ='т.4.2'!D35/'т.4.1'!D34*100 -> 3.12773812
A35: 31 | B35: Нерюнгринская | C35: =(т.4!H35/т.1!C38)/1000 -> 1.896698241 | D35: ='т.4.1'!D35/т.2!D36 -> 10.6630658 | E35: =т.6!D35/'т.4.1'!D35 -> 1.987821583 | F35: ='т.4.2'!D36/'т.4.1'!D35*100 -> 2.755304425
A36: 32 | B36: Якутская* | C36: =(т.4!H36/т.1!C39)/1000 -> 15.11535714 | D36: ='т.4.1'!D36/т.2!D37 -> 43.63195876 | E36: =т.6!D36/'т.4.1'!D36 -> 0.3202986556 | F36: ='т.4.2'!D37/'т.4.1'!D36*100 -> 1.136497885
A37: 33 | B37: Эвено-Бытантайская | C37: =(т.4!H37/т.1!C40)/1000 -> 1.352204887 | D37: ='т.4.1'!D37/т.2!D38 -> 13.43897016 | E37: =т.6!D37/'т.4.1'!D37 -> 1.223847487 | F37: ='т.4.2'!D37/'т.4.1'!D36*100 -> 1.136497885
A38: 34 | B38: Алданский | C38: =(т.4!H38/т.1!C41)/1000 -> 3.037391304 | D38: ='т.4.1'!D38/т.2!D39 -> 13.75515404 | E38: =т.6!D38/'т.4.1'!D38 -> 1.252892339 | F38: ='т.4.2'!D39/'т.4.1'!D38*100 -> 5.389771139
A39: 35 | B39: М.-Кангаласская | C39: =(т.4!H39/т.1!C42)/1000 -> 14.74177994 | D39: ='т.4.1'!D39/т.2!D40 -> 30.57598335 | E39: =т.6!D39/'т.4.1'!D39 -> 0.4508112689 | F39: ='т.4.2'!D40/'т.4.1'!D39*100 -> 1.272169669
A40: 36 | B40: ГБ ГП "г.Нерюнгри" | D40: ='т.4.1'!D40/т.2!D41 -> 16.46824463 | E40: =т.6!D40/'т.4.1'!D40 -> 0.7161502272 | F40: ='т.4.2'!D41/'т.4.1'!D40*100 -> 1.634573324
A41: 38 | B41: Бердигестях ДБ | D41: ='т.4.1'!D42/т.2!D43 -> 12.86693878 | E41: =т.6!D42/'т.4.1'!D42 -> 1.555132597 | F41: ='т.4.2'!D43/'т.4.1'!D42*100 -> 2.017510468
A42: 39 | B42: Б-ка ГО "Жатай" | C42: =(т.4!H43/т.1!C46)/1000 -> 2.017087379 | D42: ='т.4.1'!D43/т.2!D44 -> 13.20788303 | E42: =т.6!D43/'т.4.1'!D43 -> 1.296351559 | F42: ='т.4.2'!D44/'т.4.1'!D43*100 -> 1.208124759
B43: Алданский БИЦ | D43: ='т.4.1'!D44/т.2!D45 -> 11.12463768 | E43: =т.6!D44/'т.4.1'!D44 -> 1.773985293 | F43: ='т.4.2'!D45/'т.4.1'!D44*100 -> 3.717213827
B44: Томмотский БИЦ | D44: ='т.4.1'!D45/т.2!D46 -> 11.00399148 | E44: =т.6!D45/'т.4.1'!D45 -> 1.640171209 | F44: ='т.4.2'!D46/'т.4.1'!D45*100 -> 7.527869804
B45: Итого по МБ | C45: =(т.4!H46/т.1!C49)/1000 -> 7.010971293 | D45: ='т.4.1'!D46/т.2!D47 -> 21.78453526 | E45: =т.6!D46/'т.4.1'!D46 -> 0.7245665995 | F45: ='т.4.2'!D47*100/'т.4.1'!D46 -> 2.932184985
B46: НБ РС(Я) | D46: ='т.4.1'!D47/т.2!D48 -> 56.3117475 | E46: =т.6!D47/'т.4.1'!D47 -> 1.846319151 | F46: ='т.4.2'!D48*100/'т.4.1'!D47 -> 1.338847288
B47: ВСЕГО | C47: =(т.4!H50/т.1!C53)/1000 -> 9.040277806 | D47: ='т.4.1'!D52/т.2!D53 -> 25.11346188 | E47: =т.6!D50/'т.4.1'!D50 -> 0.9245393311 | F47: ='т.4.2'!D51*100/'т.4.1'!D50 -> 2.646249604

Sheet т.6
F1: Таблица 6
A2: Выдача документов из фондов библиотек
A4: № | B4: ЦБС | C4: 2019 | D4: 2020 | E4: "+ -" | F4: в городе | G4: на селе.
A5: 1 | B5: Абыйская | C5: 98540 | D5: 31701 | E5: =D5 - C5 -> -66839 | F5: =D5 - G5 -> 20481 | G5: 11220
A6: 2 | B6: Аллаиховская | C6: 45580 | D6: 15941 | E6: -29639 | F6: 11283 | G6: 4658
A7: 3 | B7: Амгинская | C7: 256921 | D7: 123399 | E7: -133522 | F7: =D7-G7 -> 0 | G7: 123399
A8: 4 | B8: Анабарская | C8: 27417 | D8: 21793 | E8: -5624 | F8: =D8-G8 -> 0 | G8: 21793
A9: 5 | B9: Булунская | C9: 149130 | D9: 113316 | E9: -35814 | F9: 74781 | G9: 38535
A10: 6 | B10: Верхневилюйская | C10: 322624 | D10: 149592 | E10: -173032 | F10: =D10-G10 -> 0 | G10: 149592
A11: 7 | B11: Верхнеколымская | C11: 108371 | D11: 83540 | E11: -24831 | F11: 57914 | G11: 25626
A12: 8 | B12: Верхоянская | C12: 188929 | D12: 62843 | E12: -126086 | F12: 31252 | G12: 31591
A13: 9 | B13: Вилюйская | C13: 343720 | D13: 191395 | E13: -152325 | F13: 110757 | G13: 80638
A14: 10 | B14: Горная | C14: 170981 | D14: 82533 | E14: -88448 | F14: 0 | G14: 82533
A15: 11 | B15: Жиганская | C15: 67356 | D15: 38042 | E15: -29314 | F15: 0 | G15: 38042
A16: 12 | B16: Кобяйская | C16: 223865 | D16: 134082 | E16: -89783 | F16: 75851 | G16: 58231
A17: 13 | B17: Ленская | C17: 337492 | D17: 145655 | E17: -191837 | F17: 105132 | G17: 40523
A18: 14 | B18: Момская | C18: 49120 | D18: 33468 | E18: -15652 | F18: 0 | G18: 33468
A19: 15 | B19: Намская | C19: 367839 | D19: 96639 | E19: -271200 | F19: =D19-G19 -> 0 | G19: 96639
A20: 16 | B20: Нижнеколымская | C20: 99938 | D20: 32575 | E20: -67363 | F20: 26964 | G20: 5611
A21: 17 | B21: Нюрбинская | C21: 378164 | D21: 176390 | E21: -201774 | F21: 41271 | G21: 135119
A22: 18 | B22: Оймяконская | C22: 101898 | D22: 54679 | E22: -47219 | F22: 34077 | G22: 20602
A23: 19 | B23: Олекминская | C23: 302199 | D23: 137747 | E23: -164452 | F23: 51849 | G23: 85898
A24: 20 | B24: Оленекская | C24: 36552 | D24: 32614 | E24: -3938 | F24: 0 | G24: 32614
A25: 21 | B25: Среднеколымская | C25: 61746 | D25: 35338 | E25: -26408 | F25: 15316 | G25: 20022
A26: 22 | B26: Сунтарская* | C26: 241851 | D26: 192417 | E26: -49434 | F26: 0 | G26: 192417
A27: 23 | B27: Таттинская | C27: 231123 | D27: 193891 | E27: -37232 | F27: 0 | G27: 193891
A28: 24 | B28: Томпонская | C28: 161474 | D28: 118006 | E28: -43468 | F28: 42828 | G28: 75178
A29: 25 | B29: Усть-Алданская | C29: 418135 | D29: 309439 | E29: -108696 | F29: 0 | G29: 309439
A30: 26 | B30: Усть-Майская | C30: 151021 | D30: 138591 | E30: -12430 | F30: 103824 | G30: 34767
A31: 27 | B31: Усть-Янская | C31: 171141 | D31: 74955 | E31: -96186 | F31: 36243 | G31: 38712
A32: 28 | B32: Хангаласская* | C32: 417172 | D32: 195168 | E32: -222004 | F32: 88002 | G32: 107166
A33: 29 | B33: Чурапчинская | C33: 349010 | D33: 175272 | E33: -173738 | F33: 0 | G33: 175272
A34: 30 | B34: Мирнинская | C34: 542360 | D34: 276882 | E34: -265478 | F34: 265069 | G34: 11813
A35: 31 | B35: Нерюнгринская | C35: 300204 | D35: 278625 | E35: -21579 | F35: 246045 | G35: 32580
A36: 32 | B36: Эвено-Бытантайcкая | C36: 39026 | D36: 13556 | E36: -25470 | F36: 0 | G36: 13556
A37: 33 | B37: Якутская | C37: 1403386 | D37: 562167 | E37: =D37 - C37 -> -841219 | F37: =D37 - G37 -> 504352 | G37: 57815
A38: 34 | B38: Алданская* | C38: 294094 | D38: 148796 | E38: =D38 - C38 -> -145298 | F38: =D38 - G38 -> 136949 | G38: 11847
A39: 35 | B39: Мегино-Кангаласская* | C39: 135757 | D39: 205354 | E39: =D39 - C39 -> 69597 | F39: =D39 - G39 -> 9791 | G39: 195563
A40: 36 | B40: ГБ ГП "г.Нерюнгри " | C40: 155768 | D40: 80221 | E40: -75547 | F40: 80221 | G40: 0
A41: 37 | B41: Сунтарская ДЮПБ | C41: 50115 | E41: -50115 | F41: 0
A42: 38 | B42: Бердигестях ДБ | C42: 46686 | D42: 24512 | F42: 0 | G42: 24512
A43: 39 | B43: Б-ка ГО "п. Жатай" | C43: 55960 | D43: 26933 | E43: =D43 - C43 -> -29027 | F43: 26933 | G43: 0
A44: 40 | B44: Алданский БИЦ* | D44: 61277 | E44: =D44 - C44 -> 61277 | F44: =D44 - G44 -> 59173 | G44: 2104
A45: 41 | B45: Томмотский БИЦ* | D45: 67826 | E45: 67826 | F45: 63432 | G45: 4394
B46: Итого по МБ | C46: =SUM(C5:C45) -> 8902665 | D46: =SUM(D5:D45) -> 4937170 | E46: -3965495 | F46: 2319790 | G46: =SUM(G5:G45) -> 2617380
B47: НБ РС(Я) | C47: 1167719 | D47: 3056910 | E47: 1889191 | F47: 3056910 | G47: 0
B48: ЦДЮ НБ РС(Я) | C48: 193025 | D48: 65725 | E48: -127300 | F48: 65725 | G48: 0
B49: РБС | C49: 83555 | D49: 63425 | E49: -20130 | F49: 63425 | G49: 0
B50: ВСЕГО | C50: =SUM(C46:C49) -> 10346964 | D50: =SUM(D46:D49) -> 8123230 | E50: -2223734 | F50: =SUM(F46:F49) -> 5505850 | G50: =SUM(G46:G49) -> 2617380
B51: КДУ | C51: 376086 | E51: =D51-C51 -> -376086 | F51: =D51-G51 -> 0
B52: Итого по РС(Я) | C52: =SUM(C50:C51) -> 10723050 | D52: =SUM(D50:D51) -> 8123230 | E52: =D52-C52 -> -2599820 | F52: =D52-G52 -> 5505850 | G52: =SUM(G50:G51) -> 2617380

Sheet т.6.1
G1: Таблица 6.1
A2: Выдача документов из фондов библиотек
A4: № | B4: ЦБС | C4: 2019 | D4: 2020 | E4: в том числе
E5: из фонда на физ. нос. | F5: из ЭБ | G5: инсталл. док. | H5: сетев. удал. лиц. док.
A6: 1 | B6: Абыйская | C6: 98540 | D6: 31701 | E6: 31701
A7: 2 | B7: Аллаиховская | C7: 45580 | D7: 15941 | E7: 15941
A8: 3 | B8: Амгинская | C8: 256921 | D8: 123399 | E8: 120240 | F8: 300 | H8: 2859
A9: 4 | B9: Анабарская | C9: 27417 | D9: 21793 | E9: 21770 | F9: 23
A10: 5 | B10: Булунская | C10: 149130 | D10: 113316 | E10: 113316
A11: 6 | B11: Верхневилюйская | C11: 322624 | D11: 149592 | E11: 149223 | F11: 108 | G11: 246 | H11: 15
A12: 7 | B12: Верхнеколымская | C12: 108371 | D12: 83540 | E12: 83122 | G12: 238 | H12: 180
A13: 8 | B13: Верхоянская | C13: 188929 | D13: 62843 | E13: 62815 | G13: 28
A14: 9 | B14: Вилюйская | C14: 343720 | D14: 191395 | E14: 179811 | F14: 11584
A15: 10 | B15: Горная | C15: 170981 | D15: 82533 | E15: 81280 | G15: 30 | H15: 1223
A16: 11 | B16: Жиганская | C16: 67356 | D16: 38042 | E16: 38042
A17: 12 | B17: Кобяйская | C17: 223865 | D17: 134082 | E17: 129470 | F17: 4356 | H17: 256
A18: 13 | B18: Ленская | C18: 337492 | D18: 145655 | E18: 143405 | H18: 2250
A19: 14 | B19: Момская | C19: 49120 | D19: 33468 | E19: 33468
A20: 15 | B20: Намская | C20: 367839 | D20: 96639 | E20: 96636 | G20: 3
A21: 16 | B21: Нижнеколымская | C21: 99938 | D21: 32575 | E21: 32575
A22: 17 | B22: Нюрбинская | C22: 378164 | D22: 176390 | E22: 176390
A23: 18 | B23: Оймяконская | C23: 101898 | D23: 54679 | E23: 54679
A24: 19 | B24: Олекминская | C24: 302199 | D24: 137747 | E24: 137742 | G24: 5
A25: 20 | B25: Оленекская | C25: 36552 | D25: 32614 | E25: 32614
A26: 21 | B26: Среднеколымская | C26: 61746 | D26: 35338 | E26: 35338
A27: 22 | B27: Сунтарская* | C27: 241851 | D27: 192417 | E27: 191768 | F27: 32 | G27: 7 | H27: 610
A28: 23 | B28: Таттинская | C28: 231123 | D28: 193891 | E28: 189541 | F28: 3117 | G28: 5 | H28: 1228
A29: 24 | B29: Томпонская | C29: 161474 | D29: 118006 | E29: 114003 | F29: 3538 | H29: 465
A30: 25 | B30: Усть-Алданская | C30: 418135 | D30: 309439 | E30: 287873 | F30: 21182 | G30: 384
A31: 26 | B31: Усть-Майская | C31: 151021 | D31: 138591 | E31: 138591
A32: 27 | B32: Усть-Янская | C32: 171141 | D32: 74955 | E32: 74955
A33: 28 | B33: Хангаласская* | C33: 417172 | D33: 195168 | E33: 135425 | F33: 58996 | G33: 385 | H33: 362
A34: 29 | B34: Чурапчинская | C34: 349010 | D34: 175272 | E34: 175272
A35: 30 | B35: Мирнинская | C35: 542360 | D35: 276882 | E35: 274765 | G35: 802 | H35: 1315
A36: 31 | B36: Нерюнгринская | C36: 300204 | D36: 278625 | E36: 262261 | F36: 3989 | G36: 461 | H36: 11914
A37: 32 | B37: Эвено-Бытантайcкая | C37: 39026 | D37: 13556 | E37: 13556
A38: 33 | B38: Якутская | C38: 1403386 | D38: 562167 | E38: 549594 | G38: 89 | H38: 12484
A39: 34 | B39: Алданская* | C39: 294094 | D39: 148796 | E39: 140709 | F39: 6584 | G39: 681 | H39: 822
A40: 35 | B40: Мег.-Кангаласская* | C40: 135757 | D40: 205354 | E40: 205354
A41: 36 | B41: ГБ ГП "г.Нерюнгри " | C41: 155768 | D41: 80221 | E41: 74504 | G41: 5705 | H41: 12
A42: 37 | B42: Сунтарская ДЮПБ* | C42: 50115
A43: 38 | B43: Бердигестях ДБ | C43: 46686 | D43: 24512 | E43: 24485 | H43: 27
A44: 39 | B44: Б-ка ГО "п. Жатай" | C44: 55960 | D44: 26933 | E44: 26933
A45: 40 | B45: Алданский БИЦ* | D45: 61277 | E45: 61277
A46: 41 | B46: Томмотский БИЦ* | D46: 67826 | E46: 67826
B47: Итого по МБ | C47: =SUM(C6:C46) -> 8902665 | D47: 4937170 | E47: 4778270 | F47: 113809 | G47: 9069 | H47: 36022
B48: НБ РС(Я) | C48: 1167719 | D48: 3056910 | E48: 156974 | F48: 2858939 | G48: 1071 | H48: 39926
B49: ЦДЮ НБ РС(Я) | C49: 193025 | D49: 65725 | E49: 65725
B50: РБС | C50: 83555 | D50: 63425 | E50: 26654 | F50: 24851 | H50: 11920
B51: ВСЕГО | C51: =SUM(C47:C50) -> 10346964 | D51: 8123230 | E51: 5027623 | F51: 2997599 | G51: 10140 | H51: 87868
B52: КДУ | C52: 376086
B53: Итого по РС(Я) | C53: =SUM(C51:C52) -> 10723050 | D53: 8123230 | E53: 5027623 | F53: 2997599 | G53: 10140 | H53: 87868

Sheet т.7
G1: Таблица 7
A2: Общие сведения.
A3: Характеристика помещений библиотек республики.
A5: № | B5: ЦБС | C5: Кол-во биб-к всего | D5: Общая площадь (кв.м.) | E5: требуют кап.ремонт (ед.) | F5: аварий- ных (ед.) | G5: арендо- ванных (ед.) | H5: прочие
A6: 1 | B6: Абыйская | C6: 7 | D6: 692.5
A7: 2 | B7: Аллаиховская | C7: 6 | D7: 401.3 | E7: 1
A8: 3 | B8: Амгинская | C8: 16 | D8: 1365.7
A9: 4 | B9: Анабарская | C9: 3 | D9: 214.2
A10: 5 | B10: Булунская | C10: 8 | D10: 822.2 | E10: 6
A11: 6 | B11: Верхневилюйская | C11: 23 | D11: 2336.2
A12: 7 | B12: Верхнеколымская | C12: 7 | D12: 1255.2 | E12: 1 | G12: 1
A13: 8 | B13: Верхоянская | C13: 17 | D13: 1222.2 | E13: 1
A14: 9 | B14: Вилюйская | C14: 24 | D14: 1638.2 | F14: 2 | G14: 1
A15: 10 | B15: Горная | C15: 9 | D15: 856.3 | E15: 1
A16: 11 | B16: Жиганская | C16: 5 | D16: 270.8
A17: 12 | B17: Кобяйская | C17: 17 | D17: 1516.3 | G17: 13
A18: 13 | B18: Ленская | C18: 21 | D18: 2378.7 | G18: 5
A19: 14 | B19: Момская | C19: 7 | D19: 591.9
A20: 15 | B20: Намская | C20: 20 | D20: 1717.4 | E20: 3 | F20: 2
A21: 16 | B21: Нижнеколымская | C21: 6 | D21: 336
A22: 17 | B22: Нюрбинская | C22: 23 | D22: 1656.3
A23: 18 | B23: Оймяконская | C23: 9 | D23: 803.3 | G23: 2
A24: 19 | B24: Олекминская | C24: 27 | D24: 1491.6
A25: 20 | B25: Оленекская | C25: 5 | D25: 374.9
A26: 21 | B26: Среднеколымская | C26: 11 | D26: 588.5
A27: 22 | B27: Сунтарская* | C27: 21 | D27: 1687.4 | F27: 1
A28: 23 | B28: Таттинская | C28: 15 | D28: 1614.5 | E28: 1 | F28: 1
A29: 24 | B29: Томпонская | C29: 13 | D29: 2202.7 | G29: 1
A30: 25 | B30: Усть-Алданская | C30: 28 | D30: 2892.9 | F30: 2
A31: 26 | B31: Усть-Майская | C31: 10 | D31: 623.1 | G31: 7
A32: 27 | B32: Усть-Янская | C32: 9 | D32: 554.9 | G32: 9
A33: 28 | B33: Хангаласская* | C33: 24 | D33: 2624.3 | E33: 1 | G33: 1
A34: 29 | B34: Чурапчинская | C34: 19 | D34: 1609.8
A35: 30 | B35: Мирнинская | C35: 11 | D35: 2720.3 | E35: 1 | G35: 8
A36: 31 | B36: Нерюнгринская | C36: 8 | D36: 1523.3
A37: 32 | B37: Эвено-Бытантайская | C37: 3 | D37: 167
A38: 33 | B38: Якутская | C38: 18 | D38: 8059.1 | E38: 1 | F38: 1 | G38: 2
A39: 34 | B39: Алданская* | C39: 9 | D39: 1168 | E39: 1 | G39: 4
A40: 35 | B40: Мегино-Кангаласская* | C40: 31 | D40: 2678.1
A41: 36 | B41: ГБ ГП "г.Нерюнгри " | C41: 1 | D41: 1527.5
A42: 37 | B42: Бердигестях ДБ | C42: 1 | D42: 192.2
A43: 38 | B43: Б-ка ГО "п. Жатай" | C43: 1 | D43: 270
A44: 39 | B44: Алданский БИЦ* | C44: 2 | D44: 427.2 | G44: 1
A45: 40 | B45: Томмотский БИЦ* | C45: 3 | D45: 345
B46: ВСЕГО: | C46: =SUM(C6:C45) -> 498 | D46: =SUM(D6:D45) -> 55417 | E46: =SUM(E6:E45) -> 18 | F46: =SUM(F6:F45) -> 9 | G46: =SUM(G6:G45) -> 55 | H46: =SUM(H6:H43) -> 0

Sheet т.8
I1: Таблица 8
A2: Материально-техническая база библиотек республики.
A3: Количество технических средств, средств связи.
A4: № | B4: ЦБС | C4: Всего | D4: число | E4: число | F4: число | G4: число библиотек, имеющих
C5: кол-во | D5: посад. | E5: посад. | F5: посад. | G5: здание | H5: спец. | I5: Интернет | J5: доступ
C6: биб-к | D6: мест | E6: мест | F6: мест | G6: для лиц | H6: оборуд. | I6: сайт | J6: в
D7: для польз. | E7: комп. | F7: с Инт. | G7: с ОВЗ, пандус | H7: для инвал. | I7: или стр. | J7: Инт.
A8: 1 | B8: Абыйская | C8: 7 | D8: 74 | E8: 9 | F8: 9 | G8: 2 | H8: 2 | I8: 1 | J8: 7
A9: 2 | B9: Аллаиховская | C9: 6 | D9: 56 | E9: 3 | F9: 3 | I9: 1 | J9: 6
A10: 3 | B10: Амгинская | C10: 16 | D10: 138 | E10: 27 | F10: 25 | G10: 7 | H10: 1 | I10: 2 | J10: 16
A11: 4 | B11: Анабарская | C11: 3 | D11: 25 | E11: 3 | F11: 3 | H11: 1 | I11: 1 | J11: 3
A12: 5 | B12: Булунская | C12: 8 | D12: 122 | E12: 10 | F12: 8 | I12: 1 | J12: 8
A13: 6 | B13: Верхневилюйская | C13: 23 | D13: 332 | E13: 54 | F13: 40 | G13: 9 | H13: 1 | I13: 1 | J13: 23
A14: 7 | B14: Верхнеколымская | C14: 7 | D14: 116 | E14: 17 | F14: 12 | G14: 3 | H14: 2 | I14: 1 | J14: 7
A15: 8 | B15: Верхоянская | C15: 17 | D15: 161 | E15: 12 | F15: 10 | G15: 2 | I15: 1 | J15: 12
A16: 9 | B16: Вилюйская | C16: 24 | D16: 211 | E16: 29 | F16: 20 | G16: 12 | I16: 1 | J16: 23
A17: 10 | B17: Горная | C17: 9 | D17: 93 | E17: 14 | F17: 11 | G17: 2 | I17: 1 | J17: 9
A18: 11 | B18: Жиганская | C18: 5 | D18: 37 | E18: 6 | F18: 6 | I18: 1 | J18: 5
A19: 12 | B19: Кобяйская | C19: 17 | D19: 207 | E19: 38 | F19: 37 | I19: 1 | J19: 17
A20: 13 | B20: Ленская | C20: 21 | D20: 196 | E20: 22 | F20: 22 | G20: 6 | I20: 1 | J20: 21
A21: 14 | B21: Момская | C21: 7 | D21: 54 | E21: 7 | F21: 6 | G21: 1 | J21: 6
A22: 15 | B22: Намская | C22: 20 | D22: 231 | E22: 39 | F22: 34 | G22: 12 | H22: 1 | I22: 1 | J22: 19
A23: 16 | B23: Нижнеколымская | C23: 6 | D23: 42 | E23: 6 | F23: 4 | I23: 1 | J23: 6
A24: 17 | B24: Нюрбинская | C24: 23 | D24: 212 | E24: 24 | F24: 22 | G24: 23 | I24: 1 | J24: 22
A25: 18 | B25: Оймяконская | C25: 9 | D25: 86 | E25: 3 | F25: 3 | I25: 1 | J25: 8
A26: 19 | B26: Олекминская | C26: 27 | D26: 282 | E26: 59 | F26: 44 | G26: 5 | H26: 1 | I26: 1 | J26: 23
A27: 20 | B27: Оленекская | C27: 5 | D27: 34 | E27: 8 | F27: 5 | I27: 1 | J27: 5
A28: 21 | B28: Среднеколымская | C28: 11 | D28: 60 | E28: 8 | F28: 8 | I28: 1 | J28: 8
A29: 22 | B29: Сунтарская* | C29: 21 | D29: 224 | E29: 32 | F29: 25 | G29: 14 | I29: 2 | J29: 21
A30: 23 | B30: Таттинская | C30: 15 | D30: 157 | E30: 25 | F30: 23 | I30: 2 | J30: 15
A31: 24 | B31: Томпонская | C31: 13 | D31: 149 | E31: 31 | F31: 29 | G31: 2 | H31: 1 | I31: 1 | J31: 12
A32: 25 | B32: Усть-Алданская | C32: 28 | D32: 339 | E32: 59 | F32: 39 | G32: 10 | H32: 2 | I32: 2 | J32: 28
A33: 26 | B33: Усть-Майская | C33: 10 | D33: 56 | E33: 3 | F33: 3 | I33: 1 | J33: 10
A34: 27 | B34: Усть-Янская | C34: 9 | D34: 57 | E34: 2 | F34: 2 | I34: 1 | J34: 3
A35: 28 | B35: Хангаласская* | C35: 24 | D35: 250 | E35: 58 | F35: 41 | G35: 6 | I35: 2 | J35: 19
A36: 29 | B36: Чурапчинская | C36: 19 | D36: 206 | E36: 34 | F36: 22 | I36: 1 | J36: 14
A37: 30 | B37: Мирнинская | C37: 11 | D37: 235 | E37: 25 | F37: 20 | G37: 1 | H37: 2 | I37: 1 | J37: 11
A38: 31 | B38: Нерюнгринская | C38: 8 | D38: 143 | E38: 31 | F38: 30 | G38: 4 | I38: 8 | J38: 7
A39: 32 | B39: Эвено-Бытантайская | C39: 3 | D39: 10 | E39: 1 | F39: 1 | I39: 1 | J39: 3
A40: 33 | B40: Якутская | C40: 18 | D40: 657 | E40: 117 | F40: 114 | G40: 10 | H40: 6 | I40: 1 | J40: 18
A41: 34 | B41: Алданская* | C41: 9 | D41: 98 | E41: 27 | F41: 22 | G41: 3 | H41: 1 | I41: 1 | J41: 7
A42: 35 | B42: Мег.-Кангаласская* | C42: 31 | D42: 284 | E42: 46 | F42: 38 | G42: 15 | I42: 2 | J42: 29
A43: 36 | B43: ГБ ГП "г.Нерюнгри " | C43: 1 | D43: 208 | E43: 13 | F43: 13 | G43: 1 | H43: 1 | I43: 1 | J43: 1
A44: 37 | B44: Бердигестях ДБ | C44: 1 | D44: 36 | E44: 3 | F44: 3 | G44: 1 | I44: 1 | J44: 1
A45: 38 | B45: Б-ка ГО "п. Жатай" | C45: 1 | D45: 27 | G45: 1 | I45: 1 | J45: 1
A46: 39 | B46: Алданский БИЦ* | C46: 2 | D46: 71 | E46: 5 | F46: 4 | G46: 1 | I46: 1 | J46: 1
A47: 40 | B47: Томмотский БИЦ* | C47: 3 | D47: 69 | E47: 9 | F47: 9 | I47: 2 | J47: 3
B48: ИТОГО по МБ | C48: =SUM(C8:C47) -> 498 | D48: =SUM(D8:D47) -> 6045 | E48: =SUM(E8:E47) -> 919 | F48: =SUM(F8:F47) -> 770 | G48: =SUM(G8:G46) -> 153 | H48: =SUM(H8:H45) -> 22 | I48: =SUM(I8:I47) -> 53 | J48: =SUM(J8:J47) -> 458
B49: НБ РС(Я) | C49: 1 | D49: 404 | E49: 49 | F49: 38 | G49: 1 | H49: 1 | I49: 1 | J49: 1
B50: ЦДЮ НБ РС(Я) | C50: 1 | D50: 139 | E50: 7 | F50: 7 | H50: 1 | I50: 1 | J50: 1
B51: РБС | C51: 1 | D51: 16 | E51: 8 | F51: 8 | H51: 1 | I51: 1 | J51: 1
B52: Итого по РС(Я) | C52: =SUM(C48:C51) -> 501 | D52: 6604 | E52: 983 | F52: =SUM(F48:F51) -> 823 | G52: 154 | H52: 25 | I52: 56 | J52: 461

Sheet т.8.1
I1: Таблица 8.1
A2: Материально-техническая база библиотек на селе.
A3: Количество технических средств, средств связи.
A4: № | B4: ЦБС | C4: Всего | D4: число | E4: число | F4: число | G4: число библиотек, имеющих
C5: кол-во | D5: посад. | E5: посад. | F5: посад. | G5: здание | H5: спец. | I5: Интернет | J5: доступ
C6: биб-к | D6: мест | E6: мест | F6: мест | G6: для лиц | H6: оборуд. | I6: сайт | J6: в
D7: для польз. | E7: компьют. | F7: с Инт. | G7: с ОВЗ, пандус | H7: для инвал. | J7: Интернет
A8: 1 | B8: Абыйская | C8: 5 | D8: 48 | E8: 5 | F8: 5 | J8: 5
A9: 2 | B9: Аллаиховская | C9: 4 | D9: 30 | J9: 4
A10: 3 | B10: Амгинская | C10: 16 | D10: 138 | E10: 27 | F10: 25 | G10: 7 | H10: 1 | I10: 2 | J10: 16
A11: 4 | B11: Анабарская | C11: 3 | D11: 25 | E11: 3 | F11: 3 | H11: 1 | I11: 1 | J11: 3
A12: 5 | B12: Булунская | C12: 6 | D12: 48 | E12: 5 | F12: 3 | J12: 6
A13: 6 | B13: Верхневилюйская | C13: 23 | D13: 332 | E13: 54 | F13: 40 | G13: 9 | H13: 1 | I13: 1 | J13: 23
A14: 7 | B14: Верхнеколымская | C14: 5 | D14: 55 | E14: 10 | F14: 5 | G14: 1 | J14: 5
A15: 8 | B15: Верхоянская | C15: 13 | D15: 102 | E15: 8 | F15: 6 | J15: 9
A16: 9 | B16: Вилюйская | C16: 20 | D16: 120 | E16: 21 | F16: 15 | G16: 9 | J16: 19
A17: 10 | B17: Горная | C17: 9 | D17: 93 | E17: 14 | F17: 11 | G17: 2 | I17: 1 | J17: 9
A18: 11 | B18: Жиганская | C18: 5 | D18: 37 | E18: 6 | F18: 6 | I18: 1 | J18: 5
A19: 12 | B19: Кобяйская | C19: 15 | D19: 161 | E19: 23 | F19: 22 | J19: 15
A20: 13 | B20: Ленская | C20: 14 | D20: 43 | E20: 14 | F20: 14 | G20: 3 | J20: 14
A21: 14 | B21: Момская | C21: 7 | D21: 54 | E21: 7 | F21: 6 | G21: 1 | J21: 6
A22: 15 | B22: Намская | C22: 20 | D22: 231 | E22: 39 | F22: 34 | G22: 12 | H22: 1 | I22: 1 | J22: 19
A23: 16 | B23: Нижнеколымская | C23: 3 | D23: 19 | E23: 3 | F23: 2 | J23: 3
A24: 17 | B24: Нюрбинская | C24: 20 | D24: 150 | E24: 21 | F24: 19 | G24: 20 | J24: 19
A25: 18 | B25: Оймяконская | C25: 6 | D25: 56 | E25: 1 | F25: 1 | J25: 5
A26: 19 | B26: Олекминская | C26: 25 | D26: 197 | E26: 46 | F26: 31 | G26: 3 | J26: 21
A27: 20 | B27: Оленекская | C27: 5 | D27: 34 | E27: 8 | F27: 5 | I27: 1 | J27: 5
A28: 21 | B28: Среднеколымская | C28: 9 | D28: 38 | E28: 6 | F28: 6 | J28: 6
A29: 22 | B29: Сунтарская* | C29: 21 | D29: 224 | E29: 32 | F29: 25 | G29: 14 | I29: 2 | J29: 21
A30: 23 | B30: Таттинская | C30: 15 | D30: 157 | E30: 25 | F30: 23 | I30: 2 | J30: 15
A31: 24 | B31: Томпонская | C31: 10 | D31: 73 | E31: 9 | F31: 7 | J31: 9
A32: 25 | B32: Усть-Алданская | C32: 28 | D32: 339 | E32: 59 | F32: 39 | G32: 10 | H32: 2 | I32: 2 | J32: 28
A33: 26 | B33: Усть-Майская | C33: 5 | D33: 12 | J33: 5
A34: 27 | B34: Усть-Янская | C34: 5 | D34: 17 | J34: 1
A35: 28 | B35: Хангаласская* | C35: 21 | D35: 175 | E35: 44 | F35: 27 | G35: 4 | I35: 1 | J35: 16
A36: 29 | B36: Чурапчинская | C36: 19 | D36: 206 | E36: 34 | F36: 22 | I36: 1 | J36: 14
A37: 30 | B37: Мирнинская | C37: 3 | D37: 20 | E37: 4 | F37: 2 | J37: 3
A38: 31 | B38: Нерюнгринская | C38: 2 | D38: 18 | E38: 3 | F38: 2 | I38: 2 | J38: 2
A39: 32 | B39: Эвено-Бытантайская | C39: 3 | D39: 10 | E39: 1 | F39: 1 | I39: 1 | J39: 3
A40: 33 | B40: Якутская | C40: 4 | D40: 92 | E40: 19 | F40: 17 | G40: 4 | H40: 1 | J40: 4
A41: 34 | B41: Алданская* | C41: 5 | D41: 32 | E41: 6 | F41: 3 | G41: 1 | I41: 0 | J41: 3
A42: 35 | B42: Мег.-Кангаласская* | C42: 30 | D42: 278 | E42: 45 | F42: 37 | G42: 14 | I42: 2 | J42: 28
A43: 36 | B43: Бердигестях ДБ | C43: 1 | D43: 36 | E43: 3 | F43: 3 | G43: 1 | I43: 1 | J43: 1
A44: 37 | B44: Алданский БИЦ* | C44: 1 | D44: 11 | E44: 1
A45: 38 | B45: Томмотский БИЦ* | C45: 1 | D45: 6 | E45: 1 | F45: 1 | J45: 1
B46: Итого по РС(Я) | C46: =SUM(C8:C45) -> 407 | D46: 3717 | E46: 607 | F46: 468 | G46: 115 | H46: 7 | I46: 22 | J46: 371

Sheet т.9
J1: Таблица 9
A2: Персонал библиотек республики.
C4: Штат | D4: Числ. | E4: из них | F4: из них имеют | J4: со стажем работы
A5: № | B5: ЦБС | C5: библ. | D5: раб-ков | E5: основной | F5: высшее | G5: из них | H5: среднее | I5: из них | J5: до 3 | K5: от 3 до | L5: свыше
D6: всего | E6: персонал | F6: обр. | G6: библ. | H6: спец. | I6: библ. | J6: лет | K6: 10 лет | L6: 10 лет
A7: 1 | B7: Абыйская | C7: 20 | D7: 20 | E7: 14 | F7: 9 | G7: 5 | H7: 4 | I7: 4 | J7: 5 | K7: 2 | L7: 7
A8: 2 | B8: Аллаиховская | C8: 15.5 | D8: 17 | E8: 11 | F8: 8 | G8: 8 | H8: 3 | I8: 1 | J8: 1 | K8: 2 | L8: 8
A9: 3 | B9: Амгинская | C9: 58.5 | D9: 60 | E9: 42 | F9: 34 | G9: 25 | H9: 6 | I9: 4 | K9: 12 | L9: 30
A10: 4 | B10: Анабарская | C10: 8 | D10: 8 | E10: 5 | F10: 1 | G10: 1 | H10: 3 | I10: 1 | J10: 2 | K10: 1 | L10: 2
A11: 5 | B11: Булунская | C11: 32 | D11: 32 | E11: 21 | F11: 5 | G11: 4 | H11: 14 | I11: 9 | J11: 3 | K11: 9 | L11: 9
A12: 6 | B12: Верхневилюйская | C12: 57.5 | D12: 65 | E12: 43 | F12: 31 | G12: 28 | H12: 12 | I12: 7 | J12: 11 | K12: 8 | L12: 24
A13: 7 | B13: Верхнеколымская | C13: 17.5 | D13: 21 | E13: 15 | F13: 6 | G13: 6 | H13: 6 | J13: 2 | K13: 6 | L13: 7
A14: 8 | B14: Верхоянская | C14: 52 | D14: 56 | E14: 36 | F14: 16 | G14: 15 | H14: 20 | I14: 10 | J14: 6 | K14: 8 | L14: 22
A15: 9 | B15: Вилюйская | C15: 53 | D15: 57 | E15: 43 | F15: 31 | G15: 27 | H15: 12 | I15: 7 | J15: 5 | K15: 10 | L15: 28
A16: 10 | B16: Горная | C16: 20 | D16: 20 | E16: 19 | F16: 16 | G16: 14 | H16: 2 | I16: 1 | J16: 1 | K16: 8 | L16: 10
A17: 11 | B17: Жиганская | C17: 9 | D17: 9 | E17: 7 | F17: 7 | G17: 7 | J17: 2 | K17: 4 | L17: 1
A18: 12 | B18: Кобяйская | C18: 44.5 | D18: 54 | E18: 32 | F18: 22 | G18: 22 | H18: 10 | I18: 8 | J18: 3 | K18: 9 | L18: 20
A19: 13 | B19: Ленская | C19: 92 | D19: 92 | E19: 55 | F19: 21 | G19: 8 | H19: 27 | I19: 11 | J19: 4 | K19: 23 | L19: 28
A20: 14 | B20: Момская | C20: 20 | D20: 22 | E20: 14 | F20: 9 | G20: 9 | H20: 4 | I20: 4 | J20: 5 | K20: 3 | L20: 6
A21: 15 | B21: Намская | C21: 56.5 | D21: 66 | E21: 39 | F21: 30 | G21: 28 | H21: 8 | I21: 2 | J21: 8 | K21: 10 | L21: 21
A22: 16 | B22: Нижнеколымская | C22: 15 | D22: 13 | E22: 12 | F22: 3 | G22: 3 | H22: 9 | I22: 6 | J22: 2 | K22: 4 | L22: 6
A23: 17 | B23: Нюрбинская | C23: 63.5 | D23: 68 | E23: 46 | F23: 35 | G23: 28 | H23: 9 | I23: 8 | J23: 4 | K23: 11 | L23: 31
A24: 18 | B24: Оймяконская | C24: 26.5 | D24: 27 | E24: 20 | F24: 10 | G24: 8 | H24: 10 | I24: 7 | J24: 5 | K24: 6 | L24: 9
A25: 19 | B25: Олекминская | C25: 62.5 | D25: 69 | E25: 46 | F25: 24 | G25: 11 | H25: 18 | I25: 11 | J25: 9 | K25: 12 | L25: 25
A26: 20 | B26: Оленекская | C26: 14.5 | D26: 14 | E26: 13 | F26: 6 | G26: 3 | H26: 5 | I26: 3 | J26: 1 | K26: 9 | L26: 3
A27: 21 | B27: Среднеколымская | C27: 20 | D27: 20 | E27: 17 | F27: 7 | G27: 7 | H27: 9 | I27: 8 | J27: 2 | K27: 6 | L27: 9
A28: 22 | B28: Сунтарская* | C28: 61.75 | D28: 65 | E28: 45 | F28: 29 | G28: 26 | H28: 13 | I28: 7 | J28: 4 | K28: 15 | L28: 26
A29: 23 | B29: Таттинская | C29: 42.5 | D29: 49 | E29: 31 | F29: 23 | G29: 20 | H29: 8 | I29: 7 | J29: 1 | K29: 8 | L29: 22
A30: 24 | B30: Томпонская | C30: 37 | D30: 37 | E30: 30 | F30: 17 | G30: 14 | H30: 9 | I30: 6 | J30: 5 | K30: 14 | L30: 11
A31: 25 | B31: Усть-Алданская | C31: 73 | D31: 92 | E31: 56 | F31: 48 | G31: 45 | H31: 7 | I31: 4 | J31: 6 | K31: 13 | L31: 37
A32: 26 | B32: Усть-Майская | C32: 33 | D32: 33 | E32: 24 | F32: 13 | G32: 8 | H32: 10 | I32: 4 | J32: 7 | K32: 4 | L32: 13
A33: 27 | B33: Усть-Янская | C33: 20 | D33: 20 | E33: 17 | F33: 8 | G33: 6 | H33: 4 | I33: 3 | J33: 7 | K33: 5 | L33: 5
A34: 28 | B34: Хангаласская* | C34: 65 | D34: 84 | E34: 52 | F34: 44 | G34: 36 | H34: 6 | I34: 3 | J34: 6 | K34: 16 | L34: 30
A35: 29 | B35: Чурапчинская | C35: 48 | D35: 59 | E35: 36 | F35: 28 | G35: 26 | H35: 8 | I35: 3 | J35: 9 | K35: 8 | L35: 19
A36: 30 | B36: Мирнинская | C36: 69.25 | D36: 71 | E36: 46 | F36: 31 | G36: 26 | H36: 13 | I36: 4 | J36: 5 | K36: 24 | L36: 17
A37: 31 | B37: Нерюнгринская | C37: 36.5 | D37: 36 | E37: 29 | F37: 17 | G37: 9 | H37: 12 | I37: 5 | J37: 6 | K37: 6 | L37: 17
A38: 32 | B38: Эвено-Бытантай | C38: 8 | D38: 9 | E38: 5 | H38: 4 | I38: 1 | K38: 1 | L38: 4
A39: 33 | B39: Якутская* | C39: 185 | D39: 198 | E39: 172 | F39: 156 | G39: 121 | H39: 15 | I39: 7 | J39: 41 | K39: 46 | L39: 85
A40: 34 | B40: Алданская* | C40: 44.75 | D40: 44 | E40: 33 | F40: 14 | G40: 9 | H40: 18 | I40: 6 | J40: 6 | K40: 7 | L40: 20
A41: 35 | B41: М.-Кангаласская* | C41: 66 | D41: 58 | E41: 56 | F41: 46 | G41: 41 | H41: 9 | I41: 9 | J41: 10 | K41: 17 | L41: 29
A42: 36 | B42: ГБ ГП "г.Нерюнгри " | C42: 11.5 | D42: 15 | E42: 13 | F42: 12 | G42: 12 | H42: 1 | I42: 1 | J42: 1 | K42: 6 | L42: 6
A43: 37 | B43: Бердигестях ДБ | C43: 7.5 | D43: 8 | E43: 4 | F43: 4 | G43: 4 | K43: 1 | L43: 3
A44: 38 | B44: Б-ка ГО "п. Жатай" | C44: 5 | D44: 5 | E44: 3 | F44: 2 | G44: 2 | H44: 1 | I44: 1 | K44: 1 | L44: 2
A45: 39 | B45: Алданский БИЦ* | C45: 10.5 | D45: 11 | E45: 7 | F45: 2 | H45: 5 | I45: 1 | K45: 4 | L45: 3
A46: 40 | B46: Томмотский БИЦ* | C46: 10 | D46: 10 | E46: 7 | F46: 2 | G46: 1 | H46: 3 | I46: 3 | K46: 4 | L46: 3
B47: Итого по МБ | C47: =SUM(C7:C46) -> 1592.25 | D47: 1714 | E47: 1216 | F47: 827 | G47: 673 | H47: 337 | I47: 187 | J47: 195 | K47: 363 | L47: 658
B48: НБ РС(Я) | C48: 213 | D48: 215 | E48: 206 | F48: 192 | G48: 152 | H48: 14 | I48: 7 | J48: 31 | K48: 32 | L48: 143
B49: ЦДЮ НБ РС(Я) | C49: 40 | D49: 41 | E49: 41 | F49: 39 | G49: 25 | H49: 2 | I49: 1 | J49: 3 | K49: 6 | L49: 32
B50: РБС | C50: 17.5 | D50: 18 | E50: 15 | F50: 13 | G50: 11 | H50: 2 | J50: 4 | K50: 3 | L50: 8
B51: Итого по РС(Я) | C51: =SUM(C47:C50) -> 1862.75 | D51: =SUM(D47:D50) -> 1988 | E51: 1478 | F51: 1071 | G51: 861 | H51: 355 | I51: 195 | J51: 233 | K51: 404 | L51: 841

Sheet т.9.1
K1: Таблица 9.1
A2: Персонал библиотек (из общего числа- в сельской местности)
C4: Штат | D4: Числ. | E4: из них | F4: из них имеют | J4: со стажем работы
A5: № | B5: ЦБС | C5: библ. | D5: раб-ков | E5: осн. | F5: высшее | G5: из них | H5: среднее | I5: из них | J5: от 3 до | K5: от 6 до | L5: свыше
D6: всего | E6: перс. | F6: обр. | G6: библ. | H6: спец. | I6: библ. | J6: 6 лет | K6: 10 лет | L6: 10 лет
A7: 1 | B7: Абыйская | C7: 10 | D7: 10 | E7: 6 | F7: 3 | G7: 2 | H7: 2 | I7: 2 | J7: 1 | K7: 1 | L7: 4
A8: 2 | B8: Аллаиховская | C8: 5.5 | D8: 7 | E8: 4 | F8: 1 | G8: 1 | H8: 3 | I8: 1 | L8: 4
A9: 3 | B9: Амгинская | C9: 58.5 | D9: 60 | E9: 42 | F9: 34 | G9: 25 | H9: 6 | I9: 4 | K9: 12 | L9: 30
A10: 4 | B10: Анабарская | C10: 8 | D10: 8 | E10: 5 | F10: 1 | G10: 1 | H10: 3 | I10: 1 | J10: 2 | K10: 1 | L10: 2
A11: 5 | B11: Булунская | C11: 12 | D11: 12 | E11: 7 | F11: 2 | G11: 1 | H11: 3 | I11: 1 | K11: 5 | L11: 2
A12: 6 | B12: Верхневилюйская | C12: 57.5 | D12: 65 | E12: 43 | F12: 31 | G12: 28 | H12: 12 | I12: 7 | J12: 11 | K12: 8 | L12: 24
A13: 7 | B13: Верхнеколымская | C13: 4.5 | D13: 7 | E13: 5 | H13: 4 | L13: 5
A14: 8 | B14: Верхоянская | C14: 21.5 | D14: 25 | E14: 13 | F14: 4 | G14: 3 | H14: 9 | I14: 4 | J14: 3 | K14: 2 | L14: 8
A15: 9 | B15: Вилюйская | C15: 27 | D15: 31 | E15: 20 | F15: 14 | G15: 11 | H15: 6 | I15: 3 | J15: 4 | K15: 5 | L15: 11
A16: 10 | B16: Горная | C16: 20 | D16: 20 | E16: 19 | F16: 16 | G16: 14 | H16: 2 | I16: 1 | J16: 1 | K16: 8 | L16: 10
A17: 11 | B17: Жиганская | C17: 9 | D17: 9 | E17: 7 | F17: 7 | G17: 7 | J17: 2 | K17: 4 | L17: 1
A18: 12 | B18: Кобяйская | C18: 24.5 | D18: 32 | E18: 17 | F18: 10 | G18: 10 | H18: 7 | I18: 5 | J18: 2 | K18: 3 | L18: 12
A19: 13 | B19: Ленская | C19: 35 | D19: 35 | E19: 15 | F19: 4 | G19: 3 | H19: 6 | I19: 1 | K19: 9 | L19: 6
A20: 14 | B20: Момская | C20: 20 | D20: 22 | E20: 14 | F20: 9 | G20: 9 | H20: 4 | I20: 4 | J20: 5 | K20: 3 | L20: 6
A21: 15 | B21: Намская | C21: 56.5 | D21: 66 | E21: 39 | F21: 30 | G21: 28 | H21: 8 | I21: 2 | J21: 8 | K21: 10 | L21: 21
A22: 16 | B22: Нижнеколымская | C22: 4 | D22: 3 | E22: 3 | F22: 1 | G22: 1 | H22: 2 | J22: 1 | K22: 1 | L22: 1
A23: 17 | B23: Нюрбинская | C23: 27 | D23: 31 | E23: 23 | F23: 15 | G23: 11 | H23: 8 | I23: 7 | J23: 2 | K23: 4 | L23: 17
A24: 18 | B24: Оймяконская | C24: 10.5 | D24: 11 | E24: 8 | F24: 7 | G24: 6 | H24: 1 | I24: 1 | J24: 1 | K24: 3 | L24: 4
A25: 19 | B25: Олекминская | C25: 36.5 | D25: 43 | E25: 26 | F25: 8 | G25: 8 | H25: 14 | I25: 9 | J25: 4 | K25: 3 | L25: 19
A26: 20 | B26: Оленекская | C26: 14.5 | D26: 14 | E26: 13 | F26: 6 | G26: 3 | H26: 5 | I26: 3 | J26: 1 | K26: 9 | L26: 3
A27: 21 | B27: Среднеколымская | C27: 9 | D27: 9 | E27: 9 | F27: 2 | G27: 2 | H27: 6 | I27: 5 | J27: 1 | K27: 4 | L27: 4
A28: 22 | B28: Сунтарская* | C28: 61.75 | D28: 65 | E28: 45 | F28: 29 | G28: 26 | H28: 13 | I28: 7 | J28: 4 | K28: 15 | L28: 26
A29: 23 | B29: Таттинская | C29: 42.5 | D29: 49 | E29: 31 | F29: 23 | G29: 20 | H29: 8 | I29: 7 | J29: 1 | K29: 8 | L29: 22
A30: 24 | B30: Томпонская | C30: 13 | D30: 13 | E30: 12 | F30: 5 | G30: 4 | H30: 5 | I30: 4 | J30: 3 | K30: 6 | L30: 3
A31: 25 | B31: Усть-Алданская* | C31: 73 | D31: 92 | E31: 56 | F31: 48 | G31: 45 | H31: 7 | I31: 4 | J31: 6 | K31: 13 | L31: 37
A32: 26 | B32: Усть-Майская | C32: 7 | D32: 7 | E32: 5 | F32: 3 | G32: 2 | H32: 2 | J32: 2 | L32: 3
A33: 27 | B33: Усть-Янская | C33: 6 | D33: 6 | E33: 6 | F33: 3 | G33: 3 | H33: 1 | I33: 1 | J33: 2 | K33: 1 | L33: 3
A34: 28 | B34: Хангаласская* | C34: 30.25 | D34: 45 | E34: 24 | F34: 19 | G34: 15 | H34: 4 | I34: 3 | J34: 3 | K34: 7 | L34: 14
A35: 29 | B35: Чурапчинская | C35: 48 | D35: 59 | E35: 36 | F35: 28 | G35: 26 | H35: 8 | I35: 3 | J35: 9 | K35: 8 | L35: 19
A36: 30 | B36: Мирнинская | C36: 4.5 | D36: 6 | E36: 3 | F36: 1 | G36: 1 | H36: 2 | L36: 3
A37: 31 | B37: Нерюнгринская | C37: 2 | D37: 2 | E37: 2 | H37: 2 | I37: 1 | J37: 1 | L37: 1
A38: 32 | B38: Эвено-Бытантайская | C38: 8 | D38: 9 | E38: 5 | H38: 4 | I38: 1 | K38: 1 | L38: 4
A39: 33 | B39: Якутская | C39: 12 | D39: 13 | E39: 12 | F39: 10 | G39: 8 | H39: 2 | J39: 1 | K39: 3 | L39: 8
A40: 34 | B40: Алданская* | C40: 7 | D40: 6 | E40: 5 | H40: 4 | I40: 1 | J40: 1 | K40: 1 | L40: 3
A41: 35 | B41: М.-Кангаласская* | C41: 64 | D41: 56 | E41: 54 | F41: 44 | G41: 39 | H41: 9 | I41: 9 | J41: 9 | K41: 17 | L41: 28
A42: 36 | B42: Бердигестях ДБ* | C42: 7.5 | D42: 8 | E42: 4 | F42: 4 | G42: 4 | K42: 1 | L42: 3
A43: 37 | B43: Алданский БИЦ* | C43: 1 | D43: 1 | E43: 1 | H43: 1 | L43: 1
A44: 38 | B44: Томмотский БИЦ* | C44: 1 | D44: 1 | E44: 1 | K44: 1
B45: Итого по РС(Я) | C45: =SUM(C7:C44) -> 859.5 | D45: 958 | E45: 640 | F45: 422 | G45: 367 | H45: 183 | I45: 102 | J45: 91 | K45: 177 | L45: 372

Sheet т.10
G1: Таблица 10
C2: Электронные (сетевые) ресурсы
A4: № | B4: ЦБС | C4: Число | D4: из них | E4: Число | F4: из них | G4: Число | H4: Число | I4: Объем | J4: Объем
C5: б-к, | E5: б-к, | F5: пред. | G5: б-к, | H5: б-к, | I5: ЭК | J5: ЭБ
C6: созд. | D6: доступ | E6: им. | F6: док. | G6: им. | H6: им.
C7: ЭК | D7: к ЭК | E7: ЭБ | F7: в откр. | G7: сетевые | H7: инсталл.
D8: через | F8: доступе | G8: лиценз. | H8: док.
D9: Инт. | G9: док.
A10: 1 | B10: Абыйская | C10: 1 | D10: 1 | I10: 16620
A11: 2 | B11: Аллаиховская | C11: 1 | I11: 6792
A12: 3 | B12: Амгинская | C12: 1 | D12: 1 | E12: 1 | F12: 1 | G12: 1 | I12: 6236 | J12: 66
A13: 4 | B13: Анабарская | C13: 1 | E13: 1 | I13: 7697 | J13: 21
A14: 5 | B14: Булунская | C14: 1 | I14: 21243
A15: 6 | B15: Верхневилюйская | C15: 1 | D15: 1 | E15: 1 | F15: 1 | G15: 1 | H15: 1 | I15: 27719 | J15: 8886
A16: 7 | B16: Верхнеколымская | C16: 1 | G16: 1 | H16: 1 | I16: 5120
A17: 8 | B17: Верхоянская | C17: 1 | D17: 1 | H17: 1 | I17: 31974
A18: 9 | B18: Вилюйская | C18: 1 | D18: 1 | E18: 1 | F18: 1 | I18: 23053 | J18: 134
A19: 10 | B19: Горная | C19: 1 | D19: 1 | E19: 1 | F19: 1 | G19: 1 | H19: 1 | I19: 9000 | J19: 57
A20: 11 | B20: Жиганская | C20: 1 | D20: 1 | I20: 9222
A21: 12 | B21: Кобяйская | C21: 1 | D21: 1 | E21: 1 | F21: 1 | G21: 1 | I21: 22629 | J21: 107
A22: 13 | B22: Ленская | C22: 1 | D22: 1 | G22: 1 | H22: 1 | I22: 20379
A23: 14 | B23: Момская | C23: 1 | D23: 1 | I23: 2140
A24: 15 | B24: Намская | C24: 1 | D24: 1 | H24: 1 | I24: 20795
A25: 16 | B25: Нижнеколымская | C25: 1 | H25: 1 | I25: 5296
A26: 17 | B26: Нюрбинская | C26: 1 | D26: 1 | I26: 7682
A27: 18 | B27: Оймяконская | C27: 1 | D27: 1 | I27: 8055
A28: 19 | B28: Олекминская | C28: 1 | E28: 1 | H28: 1 | I28: 21995 | J28: 10964
A29: 20 | B29: Оленекская | C29: 1 | D29: 1 | I29: 6068
A30: 21 | B30: Среднеколымская | C30: 1 | D30: 1 | I30: 4857
A31: 22 | B31: Сунтарская* | C31: 1 | D31: 1 | E31: 1 | F31: 1 | G31: 1 | H31: 1 | I31: 28471 | J31: 196
A32: 23 | B32: Таттинская | C32: 1 | D32: 1 | E32: 1 | F32: 1 | G32: 1 | H32: 1 | I32: 16116 | J32: 845
A33: 24 | B33: Томпонская | C33: 1 | E33: 1 | G33: 1 | H33: 1 | I33: 6896 | J33: 2545
A34: 25 | B34: Усть-Алданская | C34: 1 | D34: 1 | E34: 1 | F34: 1 | H34: 1 | I34: 10972 | J34: 457
A35: 26 | B35: Усть-Майская | C35: 1 | D35: 1 | H35: 1 | I35: 6153
A36: 27 | B36: Усть-Янская | C36: 1 | I36: 14263
A37: 28 | B37: Хангаласская* | C37: 1 | D37: 1 | E37: 1 | F37: 1 | G37: 1 | H37: 1 | I37: 34960 | J37: 1749
A38: 29 | B38: Чурапчинская | C38: 1 | D38: 1 | I38: 4614
A39: 30 | B39: Мирнинская | C39: 1 | D39: 1 | G39: 1 | H39: 1 | I39: 29744
A40: 31 | B40: Нерюнгринская | C40: 1 | D40: 1 | E40: 1 | F40: 1 | G40: 5 | H40: 5 | I40: 63541 | J40: 2519
A41: 32 | B41: Эвено-Бытантайская | C41: 1 | D41: 1 | I41: 2529
A42: 33 | B42: Якутская | C42: 1 | D42: 1 | G42: 2 | H42: 18 | I42: 169348
A43: 34 | B43: Алданская* | C43: 1 | D43: 1 | E43: 1 | F43: 1 | G43: 1 | H43: 1 | I43: 67495 | J43: 6649
A44: 35 | B44: Мегино-Кангаласская* | C44: 1 | D44: 1 | I44: 30312
A45: 36 | B45: ГБ ГП "г.Нерюнгри " | C45: 1 | D45: 1 | G45: 1 | H45: 1 | I45: 24950
A46: 37 | B46: Бердигестях ДБ | G46: 1
A47: 38 | B47: Б-ка ГО "п. Жатай"
A48: 39 | B48: Алданский БИЦ*
A49: 40 | B49: Томмотский БИЦ*
B50: Итого по МБ | C50: =SUM(C10:C49) -> 36 | D50: 28 | E50: 14 | F50: 11 | G50: 21 | H50: 40 | I50: =SUM(I10:I47) -> 794936 | J50: =SUM(J10:J47) -> 35195
B51: НБ РС(Я) | C51: 1 | D51: 1 | E51: 1 | F51: 1 | G51: 1 | H51: 1 | I51: 813747 | J51: 49836
B52: ЦДЮ НБ РС(Я) | C52: 1 | D52: 1 | I52: 62684
B53: РБС | C53: 1 | D53: 1 | E53: 1 | F53: 1 | G53: 1 | H53: 1 | I53: 31602 | J53: 21453
B54: ВСЕГО | C54: =SUM(C50:C53) -> 39 | D54: 31 | E54: 16 | F54: 13 | G54: 23 | H54: 42 | I54: 1702969 | J54: 106484

Sheet т.11
H1: Таблица 11
A2: Информационное обслуживание
A4: № | B4: ЦБС | C4: всего | D4: в том числе | F4: Выполнено справок и консульт. | H4: Число обращений удал. польз. (сайт) | J4: "+ -"
C5: документов | D5: МБА, ММБА | E5: вирт. Чит. Залы
C6: из фондов | F6: всего | G6: из них в удал. режиме | H6: 2019 | I6: 2020
C7: др. б-к
A8: 1 | B8: Абыйская | C8: 7 | D8: 7 | F8: 1842 | H8: 367 | J8: =I8-H8 -> -367
A9: 2 | B9: Аллаиховская | F9: 211 | G9: 17 | I9: 64 | J9: =I9-H9 -> 64
A10: 3 | B10: Амгинская | C10: 101 | D10: 2 | E10: 99 | F10: 3634 | G10: 1237 | H10: 1760 | I10: 5572 | J10: 3812
A11: 4 | B11: Анабарская | F11: 1341 | H11: 258 | I11: 147 | J11: -111
A12: 5 | B12: Булунская | F12: 1831 | H12: 1238 | I12: 6281 | J12: 5043
A13: 6 | B13: Верхневилюйская | C13: 95 | D13: 95 | F13: 8005 | G13: 5355 | H13: 417 | I13: 559 | J13: 142
A14: 7 | B14: Верхнеколымская | F14: 4984 | G14: 393 | H14: 19932 | I14: 8916 | J14: -11016
A15: 8 | B15: Верхоянская | F15: 1079 | G15: 10 | H15: 3 | J15: -3
A16: 9 | B16: Вилюйская | F16: 10250 | G16: 1644 | H16: 19987 | I16: 25368 | J16: 5381
A17: 10 | B17: Горная | C17: 1513 | D17: 1513 | F17: 2065 | G17: 407 | H17: 1302 | I17: 4863 | J17: 3561
A18: 11 | B18: Жиганская | F18: 6758 | G18: 73 | H18: 206 | I18: 2033 | J18: 1827
A19: 12 | B19: Кобяйская | C19: 9 | D19: 9 | F19: 5056 | G19: 667 | H19: 2679 | I19: 966 | J19: -1713
A20: 13 | B20: Ленская | C20: 126 | E20: 126 | F20: 6309 | I20: 215 | J20: 215
A21: 14 | B21: Момская | C21: 6 | D21: 6 | F21: 928 | G21: 68 | J21: 0
A22: 15 | B22: Намская | C22: 55 | D22: 55 | F22: 3502 | H22: 2365 | I22: 3398 | J22: 1033
A23: 16 | B23: Нижнеколымская | F23: 714 | I23: 261 | J23: 261
A24: 17 | B24: Нюрбинская | F24: 6257 | G24: 1160 | H24: 318 | J24: -318
A25: 18 | B25: Оймяконская | F25: 8996 | G25: 8107 | H25: 1575 | I25: 1831 | J25: 256
A26: 19 | B26: Олекминская | C26: 191 | E26: 191 | F26: 9524 | G26: 877 | H26: 1037 | I26: 874 | J26: -163
A27: 20 | B27: Оленекская | C27: 28 | D27: 28 | F27: 1587 | G27: 52 | H27: 7456 | I27: 956 | J27: -6500
A28: 21 | B28: Среднеколымская | F28: 1849 | H28: 1502 | I28: 1 | J28: -1501
A29: 22 | B29: Сунтарская* | C29: 3 | D29: 3 | F29: 7423 | H29: 10490 | I29: 15107 | J29: 4617
A30: 23 | B30: Таттинская | C30: 786 | D30: 783 | E30: 3 | F30: 4064 | H30: 45513 | I30: 124092 | J30: 78579
A31: 24 | B31: Томпонская | C31: 61 | D31: 61 | F31: 4975 | G31: 30 | I31: 10025 | J31: 10025
A32: 25 | B32: Усть-Алданская | C32: 64 | D32: 64 | F32: 17325 | G32: 5848 | H32: 5977 | I32: 10726 | J32: 4749
A33: 26 | B33: Усть-Майская | C33: 682 | D33: 682 | F33: 3046 | G33: 702 | H33: 2797 | I33: 7610 | J33: 4813
A34: 27 | B34: Усть-Янская | F34: 5925 | G34: 4688 | H34: 598 | I34: 333 | J34: -265
A35: 28 | B35: Хангаласская* | C35: 124 | D35: 124 | F35: 9718 | G35: 2947 | H35: 14324 | I35: 21626 | J35: 7302
A36: 29 | B36: Чурапчинская | C36: 2 | D36: 2 | F36: 4828 | G36: 845 | H36: 6641 | I36: 15627 | J36: 8986
A37: 30 | B37: Мирнинская | C37: 5 | D37: 5 | F37: 8345 | G37: 1941 | H37: 5219 | I37: 9489 | J37: 4270
A38: 31 | B38: Нерюнгринская | C38: 95 | E38: 95 | F38: 9450 | G38: 3388 | H38: 19051 | I38: 30734 | J38: 11683
A39: 32 | B39: Эвено-Бытантай | F39: 391 | H39: 25 | J39: -25
A40: 33 | B40: Якутская | C40: 128 | D40: 128 | F40: 18200 | G40: 1356 | H40: 17796 | I40: 197169 | J40: 179373
A41: 34 | B41: Алданская* | C41: 52 | D41: 2 | E41: 50 | F41: 3334 | G41: 26 | H41: 222543 | I41: 478776 | J41: 256233
A42: 35 | B42: Мег.-Кангаласская* | C42: 10 | D42: 10 | F42: 2836 | G42: 162 | H42: 2242 | I42: 19090 | J42: 16848
A43: 36 | B43: ГБ ГП "г.Нерюнгри " | F43: 5230 | G43: 1274 | H43: 12201 | I43: 2145 | J43: -10056
A44: 37 | B44: Бердигестях ДБ | F44: 221 | G44: 118 | H44: 17135 | I44: 15788 | J44: -1347
A45: 38 | B45: Б-ка ГО "п. Жатай" | F45: 590 | G45: 231 | H45: 1350 | I45: 620 | J45: -730
A46: 39 | B46: Алданский БИЦ* | F46: 467 | J46: 0
A47: 40 | B47: Томмотский БИЦ* | F47: 443 | J47: 0
B48: ИТОГО по МБ | C48: =SUM(C8:C47) -> 4143 | D48: 3579 | E48: 564 | F48: 193533 | G48: 43623 | H48: 446304 | I48: 1021262 | J48: 574958
B49: НБ РС(Я) | C49: 73 | D49: 7 | E49: 66 | F49: 24544 | G49: 22435 | H49: 176542 | I49: 751266 | J49: 574724
B50: ЦДЮ НБ РС(Я) | C50: 356784 | D50: 36 | E50: 356748 | F50: 3210 | G50: 1550 | H50: 4562 | I50: 6436 | J50: 1874
B51: РБС | C51: 112 | D51: 112 | F51: 4377 | G51: 1616 | H51: 3322 | I51: 9322 | J51: 6000
B52: Итого по РС(Я) | C52: =SUM(C48:C51) -> 361112 | D52: 3734 | E52: 357378 | F52: 225664 | G52: 69224 | H52: =SUM(H48:H51) -> 630730 | I52: =SUM(I48:I51) -> 1788286 | J52: 1157556
